Workbook

Sheet 説明
B2: サンプルシートの説明
Q6: ■使用手順
Q7: ①RSI表示シートの銘柄コード欄に調べたい銘柄コードを入力します。
Q9: ②RSI計算シートの足種と更新間隔を設定し、「定時取得開始」ボタンをクリックします。
Q10: 現在のRSIが計算され、RSI表示シートに反映されます。
Q11: ※足種：1m、5m、15m、1D、1W( m=分、D=日、W=週)
Q12: ※足種設定を変更する場合はクリアボタンを押してください。(ネオトレAPIの特性上、ヒストリカルデータがセルに保持されるため)
Q13: ※更新間隔は動作の安定性を保つため、60秒以上から設定が可能
Q15: ③「手動更新」ボタンを押すと更新間隔の設定に関係なく、情報が更新されます。
Q16: 更新間隔を待たずに、すぐに情報を更新したい場合に使用します。
Q18: ④RSI表示シートの閾値を入力します。その値に達するとフラグ1が立ちます。
Q20: ⑤シートを閉じる際はRSI計算シートの「更新終了」ボタンと「クリア」ボタンをクリックしてください。
Q21: ※上記ボタンを押さずに閉じると、シートの自動的な情報取得により、再起動する場合があります。
Q23: ■使用例
Q24: 逆張り戦略での投資を行っており、RSIが30以下となる価格で購入するルールで運用をしたい
Q25: 「以下」の入力欄に30を入れ、閾値以下になるとフラグが立つようにし、
Q26: このフラグを利用して、自動で成行注文が発注されるようにする
Q28: ★発注式の例
Q29: ※ネオトレAPIでは発注トリガーがあり、FALSE: 待機、TRUE: 発注を設定値としているため、
Q30: 以下の設定を行うことで自動発注を実現できます。
Q32: ①RSI表示シートでIF文を使用し、フラグを表示させるセルが1を表示していたら、TRUEを返すようにする
Q33: ※この例では、IF文入力セルはI9、Flagを表示させるセルはG9と仮定する
Q34: =IF(G9=1,TRUE,FALSE)
Q36: ②上記IF文の結果がTRUEの場合、発注されるようにする
Q37: ※銘柄はコードはC9セルを参照
Q38: =IF(I9,SNT.EqtyOrder(1,I9,C9,3,0,100,0,,1,1,,1,))
Q40: 関数のご使用方法は以下のリンクの4.情報参照-取得関数、6.照会-取得関数をご参照ください。
Q41: https://www.sbineotrade.jp/tool/api/operation.html
Q43: サンプルシート使用上の注意事項
Q45: 当サンプルシートは、特定の銘柄や商品の勧誘や売買の推奨等を目的としたものではありません。
Q46: 当サンプルシートは、株式全般の推奨や株価動向の上昇または下落を示唆するものではありません。
Q47: 投資にあたっての最終判断はお客様ご自身でお願いいたします。

Sheet RSI表示シート
D2: ヒストリカル自動更新： | E2: =RSI計算シート!A2 -> 更新中 - 2025/10/16 16:40:17
D3: 現在の足種設定： | E3: =RSI計算シート!B4 -> 1m | F3: 取得本数： | G3: =RSI計算シート!C4 -> 14 | H3: 本
D4: 更新間隔（秒）： | E4: =RSI計算シート!B5 -> 60
G7: 以下 | H7: 以上
C8: 銘柄コード | D8: 銘柄名 | E8: 現値 | F8: RSI | G8: 30 | H8: 70
B9: 1 | C9: 2432 | D9: =IF(C9="","",_xll.SNT.StockInst(C9,"銘柄名称")) -> ディーエヌエ | E9: =IF(C9="","",_xll.SNT.StockInst(C9,$E$8)) -> 2309.5 | F9: =RSI計算シート!H$46 -> 41.61047781 | G9: =IF($F9<=G$8,1,"") ->  | H9: =IF($F9>=H$8,1,"") -> 
B10: 2 | C10: 4063 | D10: =IF(C10="","",_xll.SNT.StockInst(C10,"銘柄名称")) -> 信越化 | E10: =IF(C10="","",_xll.SNT.StockInst(C10,$E$8)) -> 4897 | F10: =RSI計算シート!O$46 -> 37.57117887 | G10: =IF($F10<=G$8,1,"") ->  | H10: =IF($F10>=H$8,1,"") -> 
B11: 3 | C11: 5802 | D11: =IF(C11="","",_xll.SNT.StockInst(C11,"銘柄名称")) -> 住友電 | E11: =IF(C11="","",_xll.SNT.StockInst(C11,$E$8)) -> 4458 | F11: =RSI計算シート!V$46 -> 37.24945732
B12: 4 | C12: 5803 | D12: =IF(C12="","",_xll.SNT.StockInst(C12,"銘柄名称")) -> フジクラ | E12: =IF(C12="","",_xll.SNT.StockInst(C12,$E$8)) -> 16445 | F12: =RSI計算シート!AC$46 -> 24.1701215 | G12: 1
B13: 5 | C13: 6315 | D13: =IF(C13="","",_xll.SNT.StockInst(C13,"銘柄名称")) -> ＴＯＷＡ | E13: =IF(C13="","",_xll.SNT.StockInst(C13,$E$8)) -> 2021 | F13: =RSI計算シート!AJ$46 -> 79.97100817 | H13: 1
B14: 6 | C14: 6963 | D14: =IF(C14="","",_xll.SNT.StockInst(C14,"銘柄名称")) -> ローム | E14: =IF(C14="","",_xll.SNT.StockInst(C14,$E$8)) -> 2313 | F14: =RSI計算シート!AQ$46 -> 34.03275965
B15: 7 | C15: 7012 | D15: =IF(C15="","",_xll.SNT.StockInst(C15,"銘柄名称")) -> 川重 | E15: =IF(C15="","",_xll.SNT.StockInst(C15,$E$8)) -> 9728 | F15: =RSI計算シート!AX$46 -> 35.77018503
B16: 8 | C16: 7013 | D16: =IF(C16="","",_xll.SNT.StockInst(C16,"銘柄名称")) -> ＩＨＩ | E16: =IF(C16="","",_xll.SNT.StockInst(C16,$E$8)) -> 2752 | F16: =RSI計算シート!BE$46 -> 19.35272844 | G16: 1
B17: 9 | C17: 8604 | D17: =IF(C17="","",_xll.SNT.StockInst(C17,"銘柄名称")) -> 野村 | E17: =IF(C17="","",_xll.SNT.StockInst(C17,$E$8)) -> 1044 | F17: =RSI計算シート!BL$46 -> 29.46454932 | G17: 1
B18: 10 | C18: 7974 | D18: =IF(C18="","",_xll.SNT.StockInst(C18,"銘柄名称")) -> 任天堂 | E18: =IF(C18="","",_xll.SNT.StockInst(C18,$E$8)) -> 12470 | F18: =RSI計算シート!BS$46 -> 67.9636964

Sheet RSI計算シート
A2: 更新中 - 2025/10/16 16:40:17
A4: ヒストリカル足種設定 | B4: 1m | C4: 14 | D4: 本
A5: 更新間隔の設定（秒） | B5: 60 | C5: ※更新間隔は60秒以上入力可能
B7: =RSI表示シート!$C9 -> 2432 | C7: =IF($B7="","← 銘柄コード",_xll.SNT.StockInst($B7,"銘柄名称")) -> ディーエヌエ | I7: =RSI表示シート!$C10 -> 4063 | J7: =IF($I7="","← 銘柄コード",_xll.SNT.StockInst($I7,"銘柄名称")) -> 信越化 | P7: =RSI表示シート!$C11 -> 5802 | Q7: =IF($P7="","← 銘柄コード",_xll.SNT.StockInst($P7,"銘柄名称")) -> 住友電 | W7: =RSI表示シート!$C12 -> 5803 | X7: =IF($W7="","← 銘柄コード",_xll.SNT.StockInst($W7,"銘柄名称")) -> フジクラ | AD7: =RSI表示シート!$C13 -> 6315 | AE7: =IF($AD7="","← 銘柄コード",_xll.SNT.StockInst($AD7,"銘柄名称")) -> ＴＯＷＡ | AK7: =RSI表示シート!$C14 -> 6963 | AL7: =IF($AK7="","← 銘柄コード",_xll.SNT.StockInst($AK7,"銘柄名称")) -> ローム | AR7: =RSI表示シート!$C15 -> 7012 | AS7: =IF($AR7="","← 銘柄コード",_xll.SNT.StockInst($AR7,"銘柄名称")) -> 川重 | AY7: =RSI表示シート!$C16 -> 7013 | AZ7: =IF($AY7="","← 銘柄コード",_xll.SNT.StockInst($AY7,"銘柄名称")) -> ＩＨＩ | BF7: =RSI表示シート!$C17 -> 8604 | BG7: =IF($BF7="","← 銘柄コード",_xll.SNT.StockInst($BF7,"銘柄名称")) -> 野村 | BM7: =RSI表示シート!$C18 -> 7974 | BN7: =IF($BM7="","← 銘柄コード",_xll.SNT.StockInst($BM7,"銘柄名称")) -> 任天堂
A8: =_xll.SNT.StockHist(TRUE,B$7,$B$4,$C$4+1,"日時@終値") -> =@SNT.StockHist(TRUE,B$7,$B$4,$C$4+1,"日時@終値") | I8: =_xll.SNT.StockHist(TRUE,I$7,$B$4,$C$4+1,"終値") -> =@SNT.StockHist(TRUE,I$7,$B$4,$C$4+1,"終値") | P8: =_xll.SNT.StockHist(TRUE,P$7,$B$4,$C$4+1,"終値") -> =@SNT.StockHist(TRUE,P$7,$B$4,$C$4+1,"終値") | W8: =_xll.SNT.StockHist(TRUE,W$7,$B$4,$C$4+1,"終値") -> =@SNT.StockHist(TRUE,W$7,$B$4,$C$4+1,"終値") | AD8: =_xll.SNT.StockHist(TRUE,AD$7,$B$4,$C$4+1,"終値") -> =@SNT.StockHist(TRUE,AD$7,$B$4,$C$4+1,"終値") | AK8: =_xll.SNT.StockHist(TRUE,AK$7,$B$4,$C$4+1,"終値") -> =@SNT.StockHist(TRUE,AK$7,$B$4,$C$4+1,"終値") | AR8: =_xll.SNT.StockHist(TRUE,AR$7,$B$4,$C$4+1,"終値") -> =@SNT.StockHist(TRUE,AR$7,$B$4,$C$4+1,"終値") | AY8: =_xll.SNT.StockHist(TRUE,AY$7,$B$4,$C$4+1,"終値") -> =@SNT.StockHist(TRUE,AY$7,$B$4,$C$4+1,"終値") | BF8: =_xll.SNT.StockHist(TRUE,BF$7,$B$4,$C$4+1,"終値") -> =@SNT.StockHist(TRUE,BF$7,$B$4,$C$4+1,"終値") | BM8: =_xll.SNT.StockHist(TRUE,BM$7,$B$4,$C$4+1,"終値") -> =@SNT.StockHist(TRUE,BM$7,$B$4,$C$4+1,"終値")
A9: 日時 | B9: 終値 | C9: 終値変化 | D9: Up | E9: Down | F9: U-avg | G9: D-avg | H9: RSI | I9: 終値 | J9: 終値変化 | K9: Up | L9: Down | M9: U-avg | N9: D-avg | O9: RSI | P9: 終値 | Q9: 終値変化 | R9: Up | S9: Down | T9: U-avg | U9: D-avg | V9: RSI | W9: 終値 | X9: 終値変化 | Y9: Up | Z9: Down | AA9: U-avg | AB9: D-avg | AC9: RSI | AD9: 終値 | AE9: 終値変化 | AF9: Up | AG9: Down | AH9: U-avg | AI9: D-avg | AJ9: RSI | AK9: 終値 | AL9: 終値変化 | AM9: Up | AN9: Down | AO9: U-avg | AP9: D-avg | AQ9: RSI | AR9: 終値 | AS9: 終値変化 | AT9: Up | AU9: Down | AV9: U-avg | AW9: D-avg | AX9: RSI | AY9: 終値 | AZ9: 終値変化 | BA9: Up | BB9: Down | BC9: U-avg | BD9: D-avg | BE9: RSI | BF9: 終値 | BG9: 終値変化 | BH9: Up | BI9: Down | BJ9: U-avg | BK9: D-avg | BL9: RSI | BM9: 終値 | BN9: 終値変化 | BO9: Up | BP9: Down | BQ9: U-avg | BR9: D-avg | BS9: RSI
A10: 2025/10/17 15:16:00 | B10: 2310.5 | I10: 4901 | P10: 4463 | W10: 16465 | AD10: 2015 | AK10: 2316.5 | AR10: 9748 | AY10: 2767 | BF10: 1048 | BM10: 12425
A11: 2025/10/17 15:17:00 | B11: 2312.5 | C11: =IF(B11="",0,B11-B10) -> 2 | D11: =IF(C11>0, C11, 0) -> 2 | E11: =IF(C11<0, -C11, 0) -> 0 | F11: =SUM(D11:D24)/14 -> 0.6428571429 | G11: =SUM(E11:E24)/14 -> 0.7142857143 | H11: =IFERROR(F11/(F11+G11)*100,"") -> 47.36842105 | I11: 4902 | J11: =IF(I11="",0,I11-I10) -> 1 | K11: =IF(J11>0, J11, 0) -> 1 | L11: =IF(J11<0, -J11, 0) -> 0 | M11: =SUM(K11:K24)/14 -> 0.4285714286 | N11: =SUM(L11:L24)/14 -> 0.7142857143 | O11: =IFERROR(M11/(M11+N11)*100,"") -> 37.5 | P11: 4465 | Q11: =IF(P11="",0,P11-P10) -> 2 | R11: =IF(Q11>0, Q11, 0) -> 2 | S11: =IF(Q11<0, -Q11, 0) -> 0 | T11: =SUM(R11:R24)/14 -> 0.5714285714 | U11: =SUM(S11:S24)/14 -> 0.9285714286 | V11: =IFERROR(T11/(T11+U11)*100,"") -> 38.0952381 | W11: 16490 | X11: =IF(W11="",0,W11-W10) -> 25 | Y11: =IF(X11>0, X11, 0) -> 25 | Z11: =IF(X11<0, -X11, 0) -> 0 | AA11: =SUM(Y11:Y24)/14 -> 2.142857143 | AB11: =SUM(Z11:Z24)/14 -> 3.571428571 | AC11: =IFERROR(AA11/(AA11+AB11)*100,"") -> 37.5 | AD11: 2017 | AE11: =IF(AD11="",0,AD11-AD10) -> 2 | AF11: =IF(AE11>0, AE11, 0) -> 2 | AG11: =IF(AE11<0, -AE11, 0) -> 0 | AH11: =SUM(AF11:AF24)/14 -> 0.5714285714 | AI11: =SUM(AG11:AG24)/14 -> 0.1428571429 | AJ11: =IFERROR(AH11/(AH11+AI11)*100,"") -> 80 | AK11: 2318 | AL11: =IF(AK11="",0,AK11-AK10) -> 1.5 | AM11: =IF(AL11>0, AL11, 0) -> 1.5 | AN11: =IF(AL11<0, -AL11, 0) -> 0 | AO11: =SUM(AM11:AM24)/14 -> 0.4642857143 | AP11: =SUM(AN11:AN24)/14 -> 0.7142857143 | AQ11: =IFERROR(AO11/(AO11+AP11)*100,"") -> 39.39393939 | AR11: 9747 | AS11: =IF(AR11="",0,AR11-AR10) -> -1 | AT11: =IF(AS11>0, AS11, 0) -> 0 | AU11: =IF(AS11<0, -AS11, 0) -> 1 | AV11: =SUM(AT11:AT24)/14 -> 1.642857143 | AW11: =SUM(AU11:AU24)/14 -> 3.071428571 | AX11: =IFERROR(AV11/(AV11+AW11)*100,"") -> 34.84848485 | AY11: 2765.5 | AZ11: =IF(AY11="",0,AY11-AY10) -> -1.5 | BA11: =IF(AZ11>0, AZ11, 0) -> 0 | BB11: =IF(AZ11<0, -AZ11, 0) -> 1.5 | BC11: =SUM(BA11:BA24)/14 -> 0.2857142857 | BD11: =SUM(BB11:BB24)/14 -> 1.357142857 | BE11: =IFERROR(BC11/(BC11+BD11)*100,"") -> 17.39130435 | BF11: 1048 | BG11: =IF(BF11="",0,BF11-BF10) -> 0 | BH11: =IF(BG11>0, BG11, 0) -> 0 | BI11: =IF(BG11<0, -BG11, 0) -> 0 | BJ11: =SUM(BH11:BH24)/14 -> 0.2142857143 | BK11: =SUM(BI11:BI24)/14 -> 0.5 | BL11: =IFERROR(BJ11/(BJ11+BK11)*100,"") -> 30 | BM11: 12420 | BN11: =IF(BM11="",0,BM11-BM10) -> -5 | BO11: =IF(BN11>0, BN11, 0) -> 0 | BP11: =IF(BN11<0, -BN11, 0) -> 5 | BQ11: =SUM(BO11:BO24)/14 -> 6.071428571 | BR11: =SUM(BP11:BP24)/14 -> 2.857142857 | BS11: =IFERROR(BQ11/(BQ11+BR11)*100,"") -> 68
A12: 2025/10/17 15:18:00 | B12: 2311 | C12: =IFERROR(IF(B12="", 0, B12 - IF(B11="", LOOKUP(2, 1/(IF(ISNUMBER(B$10:B11), B$10:B11, "" )<>""), B$10:B11), B11)),0) -> -1.5 | D12: =IF(C12>0, C12, 0) -> 0 | E12: =IF(C12<0, -C12, 0) -> 1.5 | F12: =IF(ISNUMBER(B12), ((F11*($C$4-1))+D12)/$C$4, F11) -> 0.5969387755 | G12: =IF(ISNUMBER(B12), ((G11*($C$4-1))+E12)/$C$4, G11) -> 0.7704081633 | H12: =IFERROR(F12/(F12+G12)*100,H11) -> 43.65671642 | I12: 4901 | J12: =IFERROR(IF(I12="", 0, I12 - IF(I11="", LOOKUP(2, 1/(IF(ISNUMBER(I$10:I11), I$10:I11, "" )<>""), I$10:I11), I11)),0) -> -1 | K12: =IF(J12>0, J12, 0) -> 0 | L12: =IF(J12<0, -J12, 0) -> 1 | M12: =IF(ISNUMBER(I12), ((M11*($C$4-1))+K12)/$C$4, M11) -> 0.3979591837 | N12: =IF(ISNUMBER(I12), ((N11*($C$4-1))+L12)/$C$4, N11) -> 0.7346938776 | O12: =IFERROR(M12/(M12+N12)*100,O11) -> 35.13513514 | P12: 4460 | Q12: =IFERROR(IF(P12="", 0, P12 - IF(P11="", LOOKUP(2, 1/(IF(ISNUMBER(P$10:P11), P$10:P11, "" )<>""), P$10:P11), P11)),0) -> -5 | R12: =IF(Q12>0, Q12, 0) -> 0 | S12: =IF(Q12<0, -Q12, 0) -> 5 | T12: =IF(ISNUMBER(P12), ((T11*($C$4-1))+R12)/$C$4, T11) -> 0.5306122449 | U12: =IF(ISNUMBER(P12), ((U11*($C$4-1))+S12)/$C$4, U11) -> 1.219387755 | V12: =IFERROR(T12/(T12+U12)*100,V11) -> 30.32069971 | W12: 16480 | X12: =IFERROR(IF(W12="", 0, W12 - IF(W11="", LOOKUP(2, 1/(IF(ISNUMBER(W$10:W11), W$10:W11, "" )<>""), W$10:W11), W11)),0) -> -10 | Y12: =IF(X12>0, X12, 0) -> 0 | Z12: =IF(X12<0, -X12, 0) -> 10 | AA12: =IF(ISNUMBER(W12), ((AA11*($C$4-1))+Y12)/$C$4, AA11) -> 1.989795918 | AB12: =IF(ISNUMBER(W12), ((AB11*($C$4-1))+Z12)/$C$4, AB11) -> 4.030612245 | AC12: =IFERROR(AA12/(AA12+AB12)*100,AC11) -> 33.05084746 | AD12: 2017 | AE12: =IFERROR(IF(AD12="", 0, AD12 - IF(AD11="", LOOKUP(2, 1/(IF(ISNUMBER(AD$10:AD11), AD$10:AD11, "" )<>""), AD$10:AD11), AD11)),0) -> 0 | AF12: =IF(AE12>0, AE12, 0) -> 0 | AG12: =IF(AE12<0, -AE12, 0) -> 0 | AH12: =IF(ISNUMBER(AD12), ((AH11*($C$4-1))+AF12)/$C$4, AH11) -> 0.5306122449 | AI12: =IF(ISNUMBER(AD12), ((AI11*($C$4-1))+AG12)/$C$4, AI11) -> 0.1326530612 | AJ12: =IFERROR(AH12/(AH12+AI12)*100,AJ11) -> 80 | AK12: 2317 | AL12: =IFERROR(IF(AK12="", 0, AK12 - IF(AK11="", LOOKUP(2, 1/(IF(ISNUMBER(AK$10:AK11), AK$10:AK11, "" )<>""), AK$10:AK11), AK11)),0) -> -1 | AM12: =IF(AL12>0, AL12, 0) -> 0 | AN12: =IF(AL12<0, -AL12, 0) -> 1 | AO12: =IF(ISNUMBER(AK12), ((AO11*($C$4-1))+AM12)/$C$4, AO11) -> 0.431122449 | AP12: =IF(ISNUMBER(AK12), ((AP11*($C$4-1))+AN12)/$C$4, AP11) -> 0.7346938776 | AQ12: =IFERROR(AO12/(AO12+AP12)*100,AQ11) -> 36.98030635 | AR12: 9745 | AS12: =IFERROR(IF(AR12="", 0, AR12 - IF(AR11="", LOOKUP(2, 1/(IF(ISNUMBER(AR$10:AR11), AR$10:AR11, "" )<>""), AR$10:AR11), AR11)),0) -> -2 | AT12: =IF(AS12>0, AS12, 0) -> 0 | AU12: =IF(AS12<0, -AS12, 0) -> 2 | AV12: =IF(ISNUMBER(AR12), ((AV11*($C$4-1))+AT12)/$C$4, AV11) -> 1.525510204 | AW12: =IF(ISNUMBER(AR12), ((AW11*($C$4-1))+AU12)/$C$4, AW11) -> 2.994897959 | AX12: =IFERROR(AV12/(AV12+AW12)*100,AX11) -> 33.74717833 | AY12: 2763.5 | AZ12: =IFERROR(IF(AY12="", 0, AY12 - IF(AY11="", LOOKUP(2, 1/(IF(ISNUMBER(AY$10:AY11), AY$10:AY11, "" )<>""), AY$10:AY11), AY11)),0) -> -2 | BA12: =IF(AZ12>0, AZ12, 0) -> 0 | BB12: =IF(AZ12<0, -AZ12, 0) -> 2 | BC12: =IF(ISNUMBER(AY12), ((BC11*($C$4-1))+BA12)/$C$4, BC11) -> 0.2653061224 | BD12: =IF(ISNUMBER(AY12), ((BD11*($C$4-1))+BB12)/$C$4, BD11) -> 1.403061224 | BE12: =IFERROR(BC12/(BC12+BD12)*100,BE11) -> 15.90214067 | BF12: 1048.5 | BG12: =IFERROR(IF(BF12="", 0, BF12 - IF(BF11="", LOOKUP(2, 1/(IF(ISNUMBER(BF$10:BF11), BF$10:BF11, "" )<>""), BF$10:BF11), BF11)),0) -> 0.5 | BH12: =IF(BG12>0, BG12, 0) -> 0.5 | BI12: =IF(BG12<0, -BG12, 0) -> 0 | BJ12: =IF(ISNUMBER(BF12), ((BJ11*($C$4-1))+BH12)/$C$4, BJ11) -> 0.2346938776 | BK12: =IF(ISNUMBER(BF12), ((BK11*($C$4-1))+BI12)/$C$4, BK11) -> 0.4642857143 | BL12: =IFERROR(BJ12/(BJ12+BK12)*100,BL11) -> 33.57664234 | BM12: 12450 | BN12: =IFERROR(IF(BM12="", 0, BM12 - IF(BM11="", LOOKUP(2, 1/(IF(ISNUMBER(BM$10:BM11), BM$10:BM11, "" )<>""), BM$10:BM11), BM11)),0) -> 30 | BO12: =IF(BN12>0, BN12, 0) -> 30 | BP12: =IF(BN12<0, -BN12, 0) -> 0 | BQ12: =IF(ISNUMBER(BM12), ((BQ11*($C$4-1))+BO12)/$C$4, BQ11) -> 7.780612245 | BR12: =IF(ISNUMBER(BM12), ((BR11*($C$4-1))+BP12)/$C$4, BR11) -> 2.653061224 | BS12: =IFERROR(BQ12/(BQ12+BR12)*100,BS11) -> 74.57212714
A13: 2025/10/17 15:19:00 | B13: 2311 | C13: =IFERROR(IF(B13="", 0, B13 - IF(B12="", LOOKUP(2, 1/(IF(ISNUMBER(B$10:B12), B$10:B12, "" )<>""), B$10:B12), B12)),0) -> 0 | D13: 0 | E13: 0 | F13: =IF(ISNUMBER(B13), ((F12*($C$4-1))+D13)/$C$4, F12) -> 0.5543002915 | G13: =IF(ISNUMBER(B13), ((G12*($C$4-1))+E13)/$C$4, G12) -> 0.7153790087 | H13: =IFERROR(F13/(F13+G13)*100,H12) -> 43.65671642 | I13: 4898 | J13: =IFERROR(IF(I13="", 0, I13 - IF(I12="", LOOKUP(2, 1/(IF(ISNUMBER(I$10:I12), I$10:I12, "" )<>""), I$10:I12), I12)),0) -> -3 | K13: 0 | L13: 3 | M13: =IF(ISNUMBER(I13), ((M12*($C$4-1))+K13)/$C$4, M12) -> 0.3695335277 | N13: =IF(ISNUMBER(I13), ((N12*($C$4-1))+L13)/$C$4, N12) -> 0.8965014577 | O13: 29.18825561 | P13: 4460 | Q13: =IFERROR(IF(P13="", 0, P13 - IF(P12="", LOOKUP(2, 1/(IF(ISNUMBER(P$10:P12), P$10:P12, "" )<>""), P$10:P12), P12)),0) -> 0 | R13: 0 | S13: 0 | T13: =IF(ISNUMBER(P13), ((T12*($C$4-1))+R13)/$C$4, T12) -> 0.4927113703 | U13: =IF(ISNUMBER(P13), ((U12*($C$4-1))+S13)/$C$4, U12) -> 1.13228863 | V13: 30.32069971 | W13: 16470 | X13: =IFERROR(IF(W13="", 0, W13 - IF(W12="", LOOKUP(2, 1/(IF(ISNUMBER(W$10:W12), W$10:W12, "" )<>""), W$10:W12), W12)),0) -> -10 | Y13: 0 | Z13: 10 | AA13: =IF(ISNUMBER(W13), ((AA12*($C$4-1))+Y13)/$C$4, AA12) -> 1.847667638 | AB13: =IF(ISNUMBER(W13), ((AB12*($C$4-1))+Z13)/$C$4, AB12) -> 4.456997085 | AC13: 29.30635838 | AD13: 2016 | AE13: =IFERROR(IF(AD13="", 0, AD13 - IF(AD12="", LOOKUP(2, 1/(IF(ISNUMBER(AD$10:AD12), AD$10:AD12, "" )<>""), AD$10:AD12), AD12)),0) -> -1 | AF13: 0 | AG13: 1 | AH13: =IF(ISNUMBER(AD13), ((AH12*($C$4-1))+AF13)/$C$4, AH12) -> 0.4927113703 | AI13: =IF(ISNUMBER(AD13), ((AI12*($C$4-1))+AG13)/$C$4, AI12) -> 0.194606414 | AJ13: 71.68610817 | AK13: 2317.5 | AL13: =IFERROR(IF(AK13="", 0, AK13 - IF(AK12="", LOOKUP(2, 1/(IF(ISNUMBER(AK$10:AK12), AK$10:AK12, "" )<>""), AK$10:AK12), AK12)),0) -> 0.5 | AM13: 0.5 | AN13: 0 | AO13: =IF(ISNUMBER(AK13), ((AO12*($C$4-1))+AM13)/$C$4, AO12) -> 0.4360422741 | AP13: =IF(ISNUMBER(AK13), ((AP12*($C$4-1))+AN13)/$C$4, AP12) -> 0.6822157434 | AQ13: 38.99299332 | AR13: 9740 | AS13: =IFERROR(IF(AR13="", 0, AR13 - IF(AR12="", LOOKUP(2, 1/(IF(ISNUMBER(AR$10:AR12), AR$10:AR12, "" )<>""), AR$10:AR12), AR12)),0) -> -5 | AT13: 0 | AU13: 5 | AV13: =IF(ISNUMBER(AR13), ((AV12*($C$4-1))+AT13)/$C$4, AV12) -> 1.41654519 | AW13: =IF(ISNUMBER(AR13), ((AW12*($C$4-1))+AU13)/$C$4, AW12) -> 3.138119534 | AX13: 31.10097616 | AY13: 2762 | AZ13: =IFERROR(IF(AY13="", 0, AY13 - IF(AY12="", LOOKUP(2, 1/(IF(ISNUMBER(AY$10:AY12), AY$10:AY12, "" )<>""), AY$10:AY12), AY12)),0) -> -1.5 | BA13: 0 | BB13: 1.5 | BC13: =IF(ISNUMBER(AY13), ((BC12*($C$4-1))+BA13)/$C$4, BC12) -> 0.2463556851 | BD13: =IF(ISNUMBER(AY13), ((BD12*($C$4-1))+BB13)/$C$4, BD12) -> 1.409985423 | BE13: 14.87348735 | BF13: 1047.5 | BG13: =IFERROR(IF(BF13="", 0, BF13 - IF(BF12="", LOOKUP(2, 1/(IF(ISNUMBER(BF$10:BF12), BF$10:BF12, "" )<>""), BF$10:BF12), BF12)),0) -> -1 | BH13: 0 | BI13: 1 | BJ13: =IF(ISNUMBER(BF13), ((BJ12*($C$4-1))+BH13)/$C$4, BJ12) -> 0.2179300292 | BK13: =IF(ISNUMBER(BF13), ((BK12*($C$4-1))+BI13)/$C$4, BK12) -> 0.5025510204 | BL13: 30.24785028 | BM13: 12450 | BN13: =IFERROR(IF(BM13="", 0, BM13 - IF(BM12="", LOOKUP(2, 1/(IF(ISNUMBER(BM$10:BM12), BM$10:BM12, "" )<>""), BM$10:BM12), BM12)),0) -> 0 | BO13: 0 | BP13: 0 | BQ13: =IF(ISNUMBER(BM13), ((BQ12*($C$4-1))+BO13)/$C$4, BQ12) -> 7.224854227 | BR13: =IF(ISNUMBER(BM13), ((BR12*($C$4-1))+BP13)/$C$4, BR12) -> 2.463556851 | BS13: 74.57212714
A14: 2025/10/17 15:20:00 | B14: 2313 | C14: =IFERROR(IF(B14="", 0, B14 - IF(B13="", LOOKUP(2, 1/(IF(ISNUMBER(B$10:B13), B$10:B13, "" )<>""), B$10:B13), B13)),0) -> 2 | D14: 2 | E14: 0 | F14: 0.6575645564 | G14: 0.6642805081 | H14: 49.74596298 | I14: 4899 | J14: =IFERROR(IF(I14="", 0, I14 - IF(I13="", LOOKUP(2, 1/(IF(ISNUMBER(I$10:I13), I$10:I13, "" )<>""), I$10:I13), I13)),0) -> 1 | K14: 1 | L14: 0 | M14: 0.4145668471 | N14: 0.8324656393 | O14: 33.24427003 | P14: 4461 | Q14: =IFERROR(IF(P14="", 0, P14 - IF(P13="", LOOKUP(2, 1/(IF(ISNUMBER(P$10:P13), P$10:P13, "" )<>""), P$10:P13), P13)),0) -> 1 | R14: 1 | S14: 0 | T14: 0.5289462724 | U14: 1.05141087 | V14: 33.47004661 | W14: 16460 | X14: =IFERROR(IF(W14="", 0, W14 - IF(W13="", LOOKUP(2, 1/(IF(ISNUMBER(W$10:W13), W$10:W13, "" )<>""), W$10:W13), W13)),0) -> -10 | Y14: 0 | Z14: 10 | AA14: 1.715691379 | AB14: 4.852925864 | AC14: 26.11952128 | AD14: 2016 | AE14: =IFERROR(IF(AD14="", 0, AD14 - IF(AD13="", LOOKUP(2, 1/(IF(ISNUMBER(AD$10:AD13), AD$10:AD13, "" )<>""), AD$10:AD13), AD13)),0) -> 0 | AF14: 0 | AG14: 0 | AH14: 0.457517701 | AI14: 0.1807059559 | AJ14: 71.68610817 | AK14: 2317 | AL14: =IFERROR(IF(AK14="", 0, AK14 - IF(AK13="", LOOKUP(2, 1/(IF(ISNUMBER(AK$10:AK13), AK$10:AK13, "" )<>""), AK$10:AK13), AK13)),0) -> -0.5 | AM14: 0 | AN14: 0.5 | AO14: 0.4048963973 | AP14: 0.6692003332 | AQ14: 37.69645562 | AR14: 9733 | AS14: =IFERROR(IF(AR14="", 0, AR14 - IF(AR13="", LOOKUP(2, 1/(IF(ISNUMBER(AR$10:AR13), AR$10:AR13, "" )<>""), AR$10:AR13), AR13)),0) -> -7 | AT14: 0 | AU14: 7 | AV14: 1.31536339 | AW14: 3.413968138 | AX14: 27.81288185 | AY14: 2756.5 | AZ14: =IFERROR(IF(AY14="", 0, AY14 - IF(AY13="", LOOKUP(2, 1/(IF(ISNUMBER(AY$10:AY13), AY$10:AY13, "" )<>""), AY$10:AY13), AY13)),0) -> -5.5 | BA14: 0 | BB14: 5.5 | BC14: 0.2287588505 | BD14: 1.702129321 | BE14: 11.84733812 | BF14: 1046.5 | BG14: =IFERROR(IF(BF14="", 0, BF14 - IF(BF13="", LOOKUP(2, 1/(IF(ISNUMBER(BF$10:BF13), BF$10:BF13, "" )<>""), BF$10:BF13), BF13)),0) -> -1 | BH14: 0 | BI14: 1 | BJ14: 0.2023635985 | BK14: 0.5380830904 | BL14: 27.32993496 | BM14: 12440 | BN14: =IFERROR(IF(BM14="", 0, BM14 - IF(BM13="", LOOKUP(2, 1/(IF(ISNUMBER(BM$10:BM13), BM$10:BM13, "" )<>""), BM$10:BM13), BM13)),0) -> -10 | BO14: 0 | BP14: 10 | BQ14: 6.708793211 | BR14: 3.001874219 | BS14: 69.08683939
A15: 2025/10/17 15:21:00 | B15: 2315 | C15: =IFERROR(IF(B15="", 0, B15 - IF(B14="", LOOKUP(2, 1/(IF(ISNUMBER(B$10:B14), B$10:B14, "" )<>""), B$10:B14), B14)),0) -> 2 | D15: 2 | E15: 0 | F15: 0.7534528024 | G15: 0.6168319004 | H15: 54.98512834 | I15: 4898 | J15: =IFERROR(IF(I15="", 0, I15 - IF(I14="", LOOKUP(2, 1/(IF(ISNUMBER(I$10:I14), I$10:I14, "" )<>""), I$10:I14), I14)),0) -> -1 | K15: 0 | L15: 1 | M15: 0.3849549295 | N15: 0.8444323794 | O15: 31.31274633 | P15: 4458 | Q15: =IFERROR(IF(P15="", 0, P15 - IF(P14="", LOOKUP(2, 1/(IF(ISNUMBER(P$10:P14), P$10:P14, "" )<>""), P$10:P14), P14)),0) -> -3 | R15: 0 | S15: 3 | T15: 0.4911643958 | U15: 1.190595808 | V15: 29.20537628 | W15: 16460 | X15: =IFERROR(IF(W15="", 0, W15 - IF(W14="", LOOKUP(2, 1/(IF(ISNUMBER(W$10:W14), W$10:W14, "" )<>""), W$10:W14), W14)),0) -> 0 | Y15: 0 | Z15: 0 | AA15: 1.593141994 | AB15: 4.506288302 | AC15: 26.11952128 | AD15: 2015 | AE15: =IFERROR(IF(AD15="", 0, AD15 - IF(AD14="", LOOKUP(2, 1/(IF(ISNUMBER(AD$10:AD14), AD$10:AD14, "" )<>""), AD$10:AD14), AD14)),0) -> -1 | AF15: 0 | AG15: 1 | AH15: 0.4248378652 | AI15: 0.239226959 | AJ15: 63.97536049 | AK15: 2318.5 | AL15: =IFERROR(IF(AK15="", 0, AK15 - IF(AK14="", LOOKUP(2, 1/(IF(ISNUMBER(AK$10:AK14), AK$10:AK14, "" )<>""), AK$10:AK14), AK14)),0) -> 1.5 | AM15: 1.5 | AN15: 0 | AO15: 0.4831180832 | AP15: 0.6214003094 | AQ15: 43.74015738 | AR15: 9722 | AS15: =IFERROR(IF(AR15="", 0, AR15 - IF(AR14="", LOOKUP(2, 1/(IF(ISNUMBER(AR$10:AR14), AR$10:AR14, "" )<>""), AR$10:AR14), AR14)),0) -> -11 | AT15: 0 | AU15: 11 | AV15: 1.221408862 | AW15: 3.955827557 | AX15: 23.59190818 | AY15: 2754.5 | AZ15: =IFERROR(IF(AY15="", 0, AY15 - IF(AY14="", LOOKUP(2, 1/(IF(ISNUMBER(AY$10:AY14), AY$10:AY14, "" )<>""), AY$10:AY14), AY14)),0) -> -2 | BA15: 0 | BB15: 2 | BC15: 0.2124189326 | BD15: 1.723405798 | BE15: 10.97304571 | BF15: 1046.5 | BG15: =IFERROR(IF(BF15="", 0, BF15 - IF(BF14="", LOOKUP(2, 1/(IF(ISNUMBER(BF$10:BF14), BF$10:BF14, "" )<>""), BF$10:BF14), BF14)),0) -> 0 | BH15: 0 | BI15: 0 | BJ15: 0.1879090558 | BK15: 0.4996485839 | BL15: 27.32993496 | BM15: 12455 | BN15: =IFERROR(IF(BM15="", 0, BM15 - IF(BM14="", LOOKUP(2, 1/(IF(ISNUMBER(BM$10:BM14), BM$10:BM14, "" )<>""), BM$10:BM14), BM14)),0) -> 15 | BO15: 15 | BP15: 0 | BQ15: 7.301022268 | BR15: 2.787454632 | BS15: 72.3699161
A16: 2025/10/17 15:22:00 | B16: 2314.5 | C16: =IFERROR(IF(B16="", 0, B16 - IF(B15="", LOOKUP(2, 1/(IF(ISNUMBER(B$10:B15), B$10:B15, "" )<>""), B$10:B15), B15)),0) -> -0.5 | D16: 0 | E16: 0.5 | F16: 0.6996347451 | G16: 0.6084867647 | H16: =IFERROR(F16/(F16+G16)*100,H15) -> 53.48392637 | I16: 4897 | J16: =IFERROR(IF(I16="", 0, I16 - IF(I15="", LOOKUP(2, 1/(IF(ISNUMBER(I$10:I15), I$10:I15, "" )<>""), I$10:I15), I15)),0) -> -1 | K16: 0 | L16: 1 | M16: 0.3574581488 | N16: 0.8555443523 | O16: 29.46887154 | P16: 4458 | Q16: =IFERROR(IF(P16="", 0, P16 - IF(P15="", LOOKUP(2, 1/(IF(ISNUMBER(P$10:P15), P$10:P15, "" )<>""), P$10:P15), P15)),0) -> 0 | R16: 0 | S16: 0 | T16: 0.4560812247 | U16: 1.105553251 | V16: 29.20537628 | W16: 16455 | X16: =IFERROR(IF(W16="", 0, W16 - IF(W15="", LOOKUP(2, 1/(IF(ISNUMBER(W$10:W15), W$10:W15, "" )<>""), W$10:W15), W15)),0) -> -5 | Y16: 0 | Z16: 5 | AA16: 1.479346138 | AB16: 4.541553424 | AC16: 24.57018461 | AD16: 2016 | AE16: =IFERROR(IF(AD16="", 0, AD16 - IF(AD15="", LOOKUP(2, 1/(IF(ISNUMBER(AD$10:AD15), AD$10:AD15, "" )<>""), AD$10:AD15), AD15)),0) -> 1 | AF16: 1 | AG16: 0 | AH16: 0.4659208748 | AI16: 0.2221393191 | AJ16: 67.71513291 | AK16: 2318 | AL16: =IFERROR(IF(AK16="", 0, AK16 - IF(AK15="", LOOKUP(2, 1/(IF(ISNUMBER(AK$10:AK15), AK$10:AK15, "" )<>""), AK$10:AK15), AK15)),0) -> -0.5 | AM16: 0 | AN16: 0.5 | AO16: 0.4486096487 | AP16: 0.6127288587 | AQ16: 42.26829099 | AR16: 9733 | AS16: =IFERROR(IF(AR16="", 0, AR16 - IF(AR15="", LOOKUP(2, 1/(IF(ISNUMBER(AR$10:AR15), AR$10:AR15, "" )<>""), AR$10:AR15), AR15)),0) -> 11 | AT16: 11 | AU16: 0 | AV16: 1.919879658 | AW16: 3.673268446 | AX16: 34.32556446 | AY16: 2753 | AZ16: =IFERROR(IF(AY16="", 0, AY16 - IF(AY15="", LOOKUP(2, 1/(IF(ISNUMBER(AY$10:AY15), AY$10:AY15, "" )<>""), AY$10:AY15), AY15)),0) -> -1.5 | BA16: 0 | BB16: 1.5 | BC16: 0.1972461517 | BD16: 1.707448241 | BE16: 10.35579001 | BF16: 1045.5 | BG16: =IFERROR(IF(BF16="", 0, BF16 - IF(BF15="", LOOKUP(2, 1/(IF(ISNUMBER(BF$10:BF15), BF$10:BF15, "" )<>""), BF$10:BF15), BF15)),0) -> -1 | BH16: 0 | BI16: 1 | BJ16: 0.1744869803 | BK16: 0.5353879708 | BL16: 24.57996018 | BM16: 12450 | BN16: =IFERROR(IF(BM16="", 0, BM16 - IF(BM15="", LOOKUP(2, 1/(IF(ISNUMBER(BM$10:BM15), BM$10:BM15, "" )<>""), BM$10:BM15), BM15)),0) -> -5 | BO16: 0 | BP16: 5 | BQ16: 6.779520677 | BR16: 2.945493587 | BS16: 69.71219263
A17: 2025/10/17 15:23:00 | B17: 2315.5 | C17: =IFERROR(IF(B17="", 0, B17 - IF(B16="", LOOKUP(2, 1/(IF(ISNUMBER(B$10:B16), B$10:B16, "" )<>""), B$10:B16), B16)),0) -> 1 | D17: 1 | E17: 0 | F17: 0.7210894062 | G17: 0.5650234243 | H17: 56.06735187 | I17: 4897 | J17: =IFERROR(IF(I17="", 0, I17 - IF(I16="", LOOKUP(2, 1/(IF(ISNUMBER(I$10:I16), I$10:I16, "" )<>""), I$10:I16), I16)),0) -> 0 | K17: 0 | L17: 0 | M17: 0.3319254239 | N17: 0.7944340414 | O17: 29.46887154 | P17: 4458 | Q17: =IFERROR(IF(P17="", 0, P17 - IF(P16="", LOOKUP(2, 1/(IF(ISNUMBER(P$10:P16), P$10:P16, "" )<>""), P$10:P16), P16)),0) -> 0 | R17: 0 | S17: 0 | T17: 0.4235039943 | U17: 1.026585161 | V17: 29.20537628 | W17: 16460 | X17: =IFERROR(IF(W17="", 0, W17 - IF(W16="", LOOKUP(2, 1/(IF(ISNUMBER(W$10:W16), W$10:W16, "" )<>""), W$10:W16), W16)),0) -> 5 | Y17: 5 | Z17: 0 | AA17: 1.730821414 | AB17: 4.217156751 | AC17: 29.0993236 | AD17: 2017 | AE17: =IFERROR(IF(AD17="", 0, AD17 - IF(AD16="", LOOKUP(2, 1/(IF(ISNUMBER(AD$10:AD16), AD$10:AD16, "" )<>""), AD$10:AD16), AD16)),0) -> 1 | AF17: 1 | AG17: 0 | AH17: 0.5040693837 | AI17: 0.2062722249 | AJ17: 70.96154549 | AK17: 2321 | AL17: =IFERROR(IF(AK17="", 0, AK17 - IF(AK16="", LOOKUP(2, 1/(IF(ISNUMBER(AK$10:AK16), AK$10:AK16, "" )<>""), AK$10:AK16), AK16)),0) -> 3 | AM17: 3 | AN17: 0 | AO17: 0.6308518167 | AP17: 0.5689625117 | AQ17: 52.5791201 | AR17: 9737 | AS17: =IFERROR(IF(AR17="", 0, AR17 - IF(AR16="", LOOKUP(2, 1/(IF(ISNUMBER(AR$10:AR16), AR$10:AR16, "" )<>""), AR$10:AR16), AR16)),0) -> 4 | AT17: 4 | AU17: 0 | AV17: 2.068459682 | AW17: 3.410892128 | AX17: 37.75007982 | AY17: 2755 | AZ17: =IFERROR(IF(AY17="", 0, AY17 - IF(AY16="", LOOKUP(2, 1/(IF(ISNUMBER(AY$10:AY16), AY$10:AY16, "" )<>""), AY$10:AY16), AY16)),0) -> 2 | BA17: 2 | BB17: 0 | BC17: 0.3260142837 | BD17: 1.585487653 | BE17: 17.05539908 | BF17: 1047 | BG17: =IFERROR(IF(BF17="", 0, BF17 - IF(BF16="", LOOKUP(2, 1/(IF(ISNUMBER(BF$10:BF16), BF$10:BF16, "" )<>""), BF$10:BF16), BF16)),0) -> 1.5 | BH17: 1.5 | BI17: 0 | BJ17: 0.2691664817 | BK17: 0.4971459729 | BL17: 35.12489979 | BM17: 12460 | BN17: =IFERROR(IF(BM17="", 0, BM17 - IF(BM16="", LOOKUP(2, 1/(IF(ISNUMBER(BM$10:BM16), BM$10:BM16, "" )<>""), BM$10:BM16), BM16)),0) -> 10 | BO17: 10 | BP17: 0 | BQ17: 7.009554914 | BR17: 2.735101188 | BS17: 71.93229644
A18: 2025/10/17 15:24:00 | B18: 2317.5 | C18: =IFERROR(IF(B18="", 0, B18 - IF(B17="", LOOKUP(2, 1/(IF(ISNUMBER(B$10:B17), B$10:B17, "" )<>""), B$10:B17), B17)),0) -> 2 | D18: 2 | E18: 0 | F18: 0.8124401629 | G18: 0.5246646083 | H18: 60.76114456 | I18: 4893 | J18: =IFERROR(IF(I18="", 0, I18 - IF(I17="", LOOKUP(2, 1/(IF(ISNUMBER(I$10:I17), I$10:I17, "" )<>""), I$10:I17), I17)),0) -> -4 | K18: 0 | L18: 4 | M18: 0.3082164651 | N18: 1.023403038 | O18: 23.14598609 | P18: 4453 | Q18: =IFERROR(IF(P18="", 0, P18 - IF(P17="", LOOKUP(2, 1/(IF(ISNUMBER(P$10:P17), P$10:P17, "" )<>""), P$10:P17), P17)),0) -> -5 | R18: 0 | S18: 5 | T18: 0.393253709 | U18: 1.310400507 | V18: 23.08295342 | W18: 16455 | X18: =IFERROR(IF(W18="", 0, W18 - IF(W17="", LOOKUP(2, 1/(IF(ISNUMBER(W$10:W17), W$10:W17, "" )<>""), W$10:W17), W17)),0) -> -5 | Y18: 0 | Z18: 5 | AA18: 1.607191313 | AB18: 4.273074126 | AC18: 27.33195175 | AD18: 2019 | AE18: =IFERROR(IF(AD18="", 0, AD18 - IF(AD17="", LOOKUP(2, 1/(IF(ISNUMBER(AD$10:AD17), AD$10:AD17, "" )<>""), AD$10:AD17), AD17)),0) -> 2 | AF18: 2 | AG18: 0 | AH18: 0.6109215706 | AI18: 0.1915384945 | AJ18: 76.13108704 | AK18: 2319.5 | AL18: =IFERROR(IF(AK18="", 0, AK18 - IF(AK17="", LOOKUP(2, 1/(IF(ISNUMBER(AK$10:AK17), AK$10:AK17, "" )<>""), AK$10:AK17), AK17)),0) -> -1.5 | AM18: 0 | AN18: 1.5 | AO18: 0.5857909726 | AP18: 0.6354651894 | AQ18: 47.96626546 | AR18: 9745 | AS18: =IFERROR(IF(AR18="", 0, AR18 - IF(AR17="", LOOKUP(2, 1/(IF(ISNUMBER(AR$10:AR17), AR$10:AR17, "" )<>""), AR$10:AR17), AR17)),0) -> 8 | AT18: 8 | AU18: 0 | AV18: 2.492141134 | AW18: 3.167256976 | AX18: 44.03544485 | AY18: 2757 | AZ18: =IFERROR(IF(AY18="", 0, AY18 - IF(AY17="", LOOKUP(2, 1/(IF(ISNUMBER(AY$10:AY17), AY$10:AY17, "" )<>""), AY$10:AY17), AY17)),0) -> 2 | BA18: 2 | BB18: 0 | BC18: 0.445584692 | BD18: 1.472238534 | BE18: 23.23387713 | BF18: 1048 | BG18: =IFERROR(IF(BF18="", 0, BF18 - IF(BF17="", LOOKUP(2, 1/(IF(ISNUMBER(BF$10:BF17), BF$10:BF17, "" )<>""), BF$10:BF17), BF17)),0) -> 1 | BH18: 1 | BI18: 0 | BJ18: 0.3213688759 | BK18: 0.4616355462 | BL18: 41.04304737 | BM18: 12490 | BN18: =IFERROR(IF(BM18="", 0, BM18 - IF(BM17="", LOOKUP(2, 1/(IF(ISNUMBER(BM$10:BM17), BM$10:BM17, "" )<>""), BM$10:BM17), BM17)),0) -> 30 | BO18: 30 | BP18: 0 | BQ18: 8.651729563 | BR18: 2.539736817 | BS18: 77.30648754
A19: 2025/10/17 15:25:00 | C19: =IFERROR(IF(B19="", 0, B19 - IF(B18="", LOOKUP(2, 1/(IF(ISNUMBER(B$10:B18), B$10:B18, "" )<>""), B$10:B18), B18)),0) -> 0 | D19: 0 | E19: 0 | F19: 0.8124401629 | G19: 0.5246646083 | H19: 60.76114456 | J19: =IFERROR(IF(I19="", 0, I19 - IF(I18="", LOOKUP(2, 1/(IF(ISNUMBER(I$10:I18), I$10:I18, "" )<>""), I$10:I18), I18)),0) -> 0 | K19: 0 | L19: 0 | M19: 0.3082164651 | N19: 1.023403038 | O19: 23.14598609 | Q19: =IFERROR(IF(P19="", 0, P19 - IF(P18="", LOOKUP(2, 1/(IF(ISNUMBER(P$10:P18), P$10:P18, "" )<>""), P$10:P18), P18)),0) -> 0 | R19: 0 | S19: 0 | T19: 0.393253709 | U19: 1.310400507 | V19: 23.08295342 | X19: =IFERROR(IF(W19="", 0, W19 - IF(W18="", LOOKUP(2, 1/(IF(ISNUMBER(W$10:W18), W$10:W18, "" )<>""), W$10:W18), W18)),0) -> 0 | Y19: 0 | Z19: 0 | AA19: 1.607191313 | AB19: 4.273074126 | AC19: 27.33195175 | AE19: =IFERROR(IF(AD19="", 0, AD19 - IF(AD18="", LOOKUP(2, 1/(IF(ISNUMBER(AD$10:AD18), AD$10:AD18, "" )<>""), AD$10:AD18), AD18)),0) -> 0 | AF19: 0 | AG19: 0 | AH19: 0.6109215706 | AI19: 0.1915384945 | AJ19: 76.13108704 | AL19: =IFERROR(IF(AK19="", 0, AK19 - IF(AK18="", LOOKUP(2, 1/(IF(ISNUMBER(AK$10:AK18), AK$10:AK18, "" )<>""), AK$10:AK18), AK18)),0) -> 0 | AM19: 0 | AN19: 0 | AO19: 0.5857909726 | AP19: 0.6354651894 | AQ19: 47.96626546 | AS19: =IFERROR(IF(AR19="", 0, AR19 - IF(AR18="", LOOKUP(2, 1/(IF(ISNUMBER(AR$10:AR18), AR$10:AR18, "" )<>""), AR$10:AR18), AR18)),0) -> 0 | AT19: 0 | AU19: 0 | AV19: 2.492141134 | AW19: 3.167256976 | AX19: 44.03544485 | AZ19: =IFERROR(IF(AY19="", 0, AY19 - IF(AY18="", LOOKUP(2, 1/(IF(ISNUMBER(AY$10:AY18), AY$10:AY18, "" )<>""), AY$10:AY18), AY18)),0) -> 0 | BA19: 0 | BB19: 0 | BC19: 0.445584692 | BD19: 1.472238534 | BE19: 23.23387713 | BG19: =IFERROR(IF(BF19="", 0, BF19 - IF(BF18="", LOOKUP(2, 1/(IF(ISNUMBER(BF$10:BF18), BF$10:BF18, "" )<>""), BF$10:BF18), BF18)),0) -> 0 | BH19: 0 | BI19: 0 | BJ19: 0.3213688759 | BK19: 0.4616355462 | BL19: 41.04304737 | BN19: =IFERROR(IF(BM19="", 0, BM19 - IF(BM18="", LOOKUP(2, 1/(IF(ISNUMBER(BM$10:BM18), BM$10:BM18, "" )<>""), BM$10:BM18), BM18)),0) -> 0 | BO19: 0 | BP19: 0 | BQ19: 8.651729563 | BR19: 2.539736817 | BS19: 77.30648754
A20: 2025/10/17 15:26:00 | C20: =IFERROR(IF(B20="", 0, B20 - IF(B19="", LOOKUP(2, 1/(IF(ISNUMBER(B$10:B19), B$10:B19, "" )<>""), B$10:B19), B19)),0) -> 0 | D20: 0 | E20: 0 | F20: 0.8124401629 | G20: 0.5246646083 | H20: 60.76114456 | J20: =IFERROR(IF(I20="", 0, I20 - IF(I19="", LOOKUP(2, 1/(IF(ISNUMBER(I$10:I19), I$10:I19, "" )<>""), I$10:I19), I19)),0) -> 0 | K20: 0 | L20: 0 | M20: 0.3082164651 | N20: 1.023403038 | O20: 23.14598609 | Q20: =IFERROR(IF(P20="", 0, P20 - IF(P19="", LOOKUP(2, 1/(IF(ISNUMBER(P$10:P19), P$10:P19, "" )<>""), P$10:P19), P19)),0) -> 0 | R20: 0 | S20: 0 | T20: 0.393253709 | U20: 1.310400507 | V20: 23.08295342 | X20: =IFERROR(IF(W20="", 0, W20 - IF(W19="", LOOKUP(2, 1/(IF(ISNUMBER(W$10:W19), W$10:W19, "" )<>""), W$10:W19), W19)),0) -> 0 | Y20: 0 | Z20: 0 | AA20: 1.607191313 | AB20: 4.273074126 | AC20: 27.33195175 | AE20: =IFERROR(IF(AD20="", 0, AD20 - IF(AD19="", LOOKUP(2, 1/(IF(ISNUMBER(AD$10:AD19), AD$10:AD19, "" )<>""), AD$10:AD19), AD19)),0) -> 0 | AF20: 0 | AG20: 0 | AH20: 0.6109215706 | AI20: 0.1915384945 | AJ20: 76.13108704 | AL20: =IFERROR(IF(AK20="", 0, AK20 - IF(AK19="", LOOKUP(2, 1/(IF(ISNUMBER(AK$10:AK19), AK$10:AK19, "" )<>""), AK$10:AK19), AK19)),0) -> 0 | AM20: 0 | AN20: 0 | AO20: 0.5857909726 | AP20: 0.6354651894 | AQ20: 47.96626546 | AS20: =IFERROR(IF(AR20="", 0, AR20 - IF(AR19="", LOOKUP(2, 1/(IF(ISNUMBER(AR$10:AR19), AR$10:AR19, "" )<>""), AR$10:AR19), AR19)),0) -> 0 | AT20: 0 | AU20: 0 | AV20: 2.492141134 | AW20: 3.167256976 | AX20: 44.03544485 | AZ20: =IFERROR(IF(AY20="", 0, AY20 - IF(AY19="", LOOKUP(2, 1/(IF(ISNUMBER(AY$10:AY19), AY$10:AY19, "" )<>""), AY$10:AY19), AY19)),0) -> 0 | BA20: 0 | BB20: 0 | BC20: 0.445584692 | BD20: 1.472238534 | BE20: 23.23387713 | BG20: =IFERROR(IF(BF20="", 0, BF20 - IF(BF19="", LOOKUP(2, 1/(IF(ISNUMBER(BF$10:BF19), BF$10:BF19, "" )<>""), BF$10:BF19), BF19)),0) -> 0 | BH20: 0 | BI20: 0 | BJ20: 0.3213688759 | BK20: 0.4616355462 | BL20: 41.04304737 | BN20: =IFERROR(IF(BM20="", 0, BM20 - IF(BM19="", LOOKUP(2, 1/(IF(ISNUMBER(BM$10:BM19), BM$10:BM19, "" )<>""), BM$10:BM19), BM19)),0) -> 0 | BO20: 0 | BP20: 0 | BQ20: 8.651729563 | BR20: 2.539736817 | BS20: 77.30648754
A21: 2025/10/17 15:27:00 | C21: =IFERROR(IF(B21="", 0, B21 - IF(B20="", LOOKUP(2, 1/(IF(ISNUMBER(B$10:B20), B$10:B20, "" )<>""), B$10:B20), B20)),0) -> 0 | D21: 0 | E21: 0 | F21: 0.8124401629 | G21: 0.5246646083 | H21: 60.76114456 | J21: =IFERROR(IF(I21="", 0, I21 - IF(I20="", LOOKUP(2, 1/(IF(ISNUMBER(I$10:I20), I$10:I20, "" )<>""), I$10:I20), I20)),0) -> 0 | K21: 0 | L21: 0 | M21: 0.3082164651 | N21: 1.023403038 | O21: 23.14598609 | Q21: =IFERROR(IF(P21="", 0, P21 - IF(P20="", LOOKUP(2, 1/(IF(ISNUMBER(P$10:P20), P$10:P20, "" )<>""), P$10:P20), P20)),0) -> 0 | R21: 0 | S21: 0 | T21: 0.393253709 | U21: 1.310400507 | V21: 23.08295342 | X21: =IFERROR(IF(W21="", 0, W21 - IF(W20="", LOOKUP(2, 1/(IF(ISNUMBER(W$10:W20), W$10:W20, "" )<>""), W$10:W20), W20)),0) -> 0 | Y21: 0 | Z21: 0 | AA21: 1.607191313 | AB21: 4.273074126 | AC21: 27.33195175 | AE21: =IFERROR(IF(AD21="", 0, AD21 - IF(AD20="", LOOKUP(2, 1/(IF(ISNUMBER(AD$10:AD20), AD$10:AD20, "" )<>""), AD$10:AD20), AD20)),0) -> 0 | AF21: 0 | AG21: 0 | AH21: 0.6109215706 | AI21: 0.1915384945 | AJ21: 76.13108704 | AL21: =IFERROR(IF(AK21="", 0, AK21 - IF(AK20="", LOOKUP(2, 1/(IF(ISNUMBER(AK$10:AK20), AK$10:AK20, "" )<>""), AK$10:AK20), AK20)),0) -> 0 | AM21: 0 | AN21: 0 | AO21: 0.5857909726 | AP21: 0.6354651894 | AQ21: 47.96626546 | AS21: =IFERROR(IF(AR21="", 0, AR21 - IF(AR20="", LOOKUP(2, 1/(IF(ISNUMBER(AR$10:AR20), AR$10:AR20, "" )<>""), AR$10:AR20), AR20)),0) -> 0 | AT21: 0 | AU21: 0 | AV21: 2.492141134 | AW21: 3.167256976 | AX21: 44.03544485 | AZ21: =IFERROR(IF(AY21="", 0, AY21 - IF(AY20="", LOOKUP(2, 1/(IF(ISNUMBER(AY$10:AY20), AY$10:AY20, "" )<>""), AY$10:AY20), AY20)),0) -> 0 | BA21: 0 | BB21: 0 | BC21: 0.445584692 | BD21: 1.472238534 | BE21: 23.23387713 | BG21: =IFERROR(IF(BF21="", 0, BF21 - IF(BF20="", LOOKUP(2, 1/(IF(ISNUMBER(BF$10:BF20), BF$10:BF20, "" )<>""), BF$10:BF20), BF20)),0) -> 0 | BH21: 0 | BI21: 0 | BJ21: 0.3213688759 | BK21: 0.4616355462 | BL21: 41.04304737 | BN21: =IFERROR(IF(BM21="", 0, BM21 - IF(BM20="", LOOKUP(2, 1/(IF(ISNUMBER(BM$10:BM20), BM$10:BM20, "" )<>""), BM$10:BM20), BM20)),0) -> 0 | BO21: 0 | BP21: 0 | BQ21: 8.651729563 | BR21: 2.539736817 | BS21: 77.30648754
A22: 2025/10/17 15:28:00 | C22: =IFERROR(IF(B22="", 0, B22 - IF(B21="", LOOKUP(2, 1/(IF(ISNUMBER(B$10:B21), B$10:B21, "" )<>""), B$10:B21), B21)),0) -> 0 | D22: 0 | E22: 0 | F22: 0.8124401629 | G22: 0.5246646083 | H22: 60.76114456 | J22: =IFERROR(IF(I22="", 0, I22 - IF(I21="", LOOKUP(2, 1/(IF(ISNUMBER(I$10:I21), I$10:I21, "" )<>""), I$10:I21), I21)),0) -> 0 | K22: 0 | L22: 0 | M22: 0.3082164651 | N22: 1.023403038 | O22: 23.14598609 | Q22: =IFERROR(IF(P22="", 0, P22 - IF(P21="", LOOKUP(2, 1/(IF(ISNUMBER(P$10:P21), P$10:P21, "" )<>""), P$10:P21), P21)),0) -> 0 | R22: 0 | S22: 0 | T22: 0.393253709 | U22: 1.310400507 | V22: 23.08295342 | X22: =IFERROR(IF(W22="", 0, W22 - IF(W21="", LOOKUP(2, 1/(IF(ISNUMBER(W$10:W21), W$10:W21, "" )<>""), W$10:W21), W21)),0) -> 0 | Y22: 0 | Z22: 0 | AA22: 1.607191313 | AB22: 4.273074126 | AC22: 27.33195175 | AE22: =IFERROR(IF(AD22="", 0, AD22 - IF(AD21="", LOOKUP(2, 1/(IF(ISNUMBER(AD$10:AD21), AD$10:AD21, "" )<>""), AD$10:AD21), AD21)),0) -> 0 | AF22: 0 | AG22: 0 | AH22: 0.6109215706 | AI22: 0.1915384945 | AJ22: 76.13108704 | AL22: =IFERROR(IF(AK22="", 0, AK22 - IF(AK21="", LOOKUP(2, 1/(IF(ISNUMBER(AK$10:AK21), AK$10:AK21, "" )<>""), AK$10:AK21), AK21)),0) -> 0 | AM22: 0 | AN22: 0 | AO22: 0.5857909726 | AP22: 0.6354651894 | AQ22: 47.96626546 | AS22: =IFERROR(IF(AR22="", 0, AR22 - IF(AR21="", LOOKUP(2, 1/(IF(ISNUMBER(AR$10:AR21), AR$10:AR21, "" )<>""), AR$10:AR21), AR21)),0) -> 0 | AT22: 0 | AU22: 0 | AV22: 2.492141134 | AW22: 3.167256976 | AX22: 44.03544485 | AZ22: =IFERROR(IF(AY22="", 0, AY22 - IF(AY21="", LOOKUP(2, 1/(IF(ISNUMBER(AY$10:AY21), AY$10:AY21, "" )<>""), AY$10:AY21), AY21)),0) -> 0 | BA22: 0 | BB22: 0 | BC22: 0.445584692 | BD22: 1.472238534 | BE22: 23.23387713 | BG22: =IFERROR(IF(BF22="", 0, BF22 - IF(BF21="", LOOKUP(2, 1/(IF(ISNUMBER(BF$10:BF21), BF$10:BF21, "" )<>""), BF$10:BF21), BF21)),0) -> 0 | BH22: 0 | BI22: 0 | BJ22: 0.3213688759 | BK22: 0.4616355462 | BL22: 41.04304737 | BN22: =IFERROR(IF(BM22="", 0, BM22 - IF(BM21="", LOOKUP(2, 1/(IF(ISNUMBER(BM$10:BM21), BM$10:BM21, "" )<>""), BM$10:BM21), BM21)),0) -> 0 | BO22: 0 | BP22: 0 | BQ22: 8.651729563 | BR22: 2.539736817 | BS22: 77.30648754
A23: 2025/10/17 15:29:00 | C23: =IFERROR(IF(B23="", 0, B23 - IF(B22="", LOOKUP(2, 1/(IF(ISNUMBER(B$10:B22), B$10:B22, "" )<>""), B$10:B22), B22)),0) -> 0 | D23: 0 | E23: 0 | F23: 0.8124401629 | G23: 0.5246646083 | H23: 60.76114456 | J23: =IFERROR(IF(I23="", 0, I23 - IF(I22="", LOOKUP(2, 1/(IF(ISNUMBER(I$10:I22), I$10:I22, "" )<>""), I$10:I22), I22)),0) -> 0 | K23: 0 | L23: 0 | M23: 0.3082164651 | N23: 1.023403038 | O23: 23.14598609 | Q23: =IFERROR(IF(P23="", 0, P23 - IF(P22="", LOOKUP(2, 1/(IF(ISNUMBER(P$10:P22), P$10:P22, "" )<>""), P$10:P22), P22)),0) -> 0 | R23: 0 | S23: 0 | T23: 0.393253709 | U23: 1.310400507 | V23: 23.08295342 | X23: =IFERROR(IF(W23="", 0, W23 - IF(W22="", LOOKUP(2, 1/(IF(ISNUMBER(W$10:W22), W$10:W22, "" )<>""), W$10:W22), W22)),0) -> 0 | Y23: 0 | Z23: 0 | AA23: 1.607191313 | AB23: 4.273074126 | AC23: 27.33195175 | AE23: =IFERROR(IF(AD23="", 0, AD23 - IF(AD22="", LOOKUP(2, 1/(IF(ISNUMBER(AD$10:AD22), AD$10:AD22, "" )<>""), AD$10:AD22), AD22)),0) -> 0 | AF23: 0 | AG23: 0 | AH23: 0.6109215706 | AI23: 0.1915384945 | AJ23: 76.13108704 | AL23: =IFERROR(IF(AK23="", 0, AK23 - IF(AK22="", LOOKUP(2, 1/(IF(ISNUMBER(AK$10:AK22), AK$10:AK22, "" )<>""), AK$10:AK22), AK22)),0) -> 0 | AM23: 0 | AN23: 0 | AO23: 0.5857909726 | AP23: 0.6354651894 | AQ23: 47.96626546 | AS23: =IFERROR(IF(AR23="", 0, AR23 - IF(AR22="", LOOKUP(2, 1/(IF(ISNUMBER(AR$10:AR22), AR$10:AR22, "" )<>""), AR$10:AR22), AR22)),0) -> 0 | AT23: 0 | AU23: 0 | AV23: 2.492141134 | AW23: 3.167256976 | AX23: 44.03544485 | AZ23: =IFERROR(IF(AY23="", 0, AY23 - IF(AY22="", LOOKUP(2, 1/(IF(ISNUMBER(AY$10:AY22), AY$10:AY22, "" )<>""), AY$10:AY22), AY22)),0) -> 0 | BA23: 0 | BB23: 0 | BC23: 0.445584692 | BD23: 1.472238534 | BE23: 23.23387713 | BG23: =IFERROR(IF(BF23="", 0, BF23 - IF(BF22="", LOOKUP(2, 1/(IF(ISNUMBER(BF$10:BF22), BF$10:BF22, "" )<>""), BF$10:BF22), BF22)),0) -> 0 | BH23: 0 | BI23: 0 | BJ23: 0.3213688759 | BK23: 0.4616355462 | BL23: 41.04304737 | BN23: =IFERROR(IF(BM23="", 0, BM23 - IF(BM22="", LOOKUP(2, 1/(IF(ISNUMBER(BM$10:BM22), BM$10:BM22, "" )<>""), BM$10:BM22), BM22)),0) -> 0 | BO23: 0 | BP23: 0 | BQ23: 8.651729563 | BR23: 2.539736817 | BS23: 77.30648754
A24: 2025/10/17 15:30:00 | B24: 2309.5 | C24: =IFERROR(IF(B24="", 0, B24 - IF(B23="", LOOKUP(2, 1/(IF(ISNUMBER(B$10:B23), B$10:B23, "" )<>""), B$10:B23), B23)),0) -> -8 | D24: 0 | E24: 8 | F24: 0.7544087227 | G24: 1.058617136 | H24: 41.61047781 | I24: 4897 | J24: =IFERROR(IF(I24="", 0, I24 - IF(I23="", LOOKUP(2, 1/(IF(ISNUMBER(I$10:I23), I$10:I23, "" )<>""), I$10:I23), I23)),0) -> 4 | K24: 4 | L24: 0 | M24: 0.571915289 | N24: 0.9503028214 | O24: 37.57117887 | P24: 4458 | Q24: =IFERROR(IF(P24="", 0, P24 - IF(P23="", LOOKUP(2, 1/(IF(ISNUMBER(P$10:P23), P$10:P23, "" )<>""), P$10:P23), P23)),0) -> 5 | R24: 5 | S24: 0 | T24: 0.7223070155 | U24: 1.216800471 | V24: 37.24945732 | W24: 16445 | X24: =IFERROR(IF(W24="", 0, W24 - IF(W23="", LOOKUP(2, 1/(IF(ISNUMBER(W$10:W23), W$10:W23, "" )<>""), W$10:W23), W23)),0) -> -10 | Y24: 0 | Z24: 10 | AA24: 1.492391933 | AB24: 4.682140259 | AC24: 24.1701215 | AD24: 2021 | AE24: =IFERROR(IF(AD24="", 0, AD24 - IF(AD23="", LOOKUP(2, 1/(IF(ISNUMBER(AD$10:AD23), AD$10:AD23, "" )<>""), AD$10:AD23), AD23)),0) -> 2 | AF24: 2 | AG24: 0 | AH24: 0.7101414584 | AI24: 0.1778571735 | AJ24: 79.97100817 | AK24: 2313 | AL24: =IFERROR(IF(AK24="", 0, AK24 - IF(AK23="", LOOKUP(2, 1/(IF(ISNUMBER(AK$10:AK23), AK$10:AK23, "" )<>""), AK$10:AK23), AK23)),0) -> -6.5 | AM24: 0 | AN24: 6.5 | AO24: 0.5439487603 | AP24: 1.054360533 | AQ24: 34.03275965 | AR24: 9728 | AS24: =IFERROR(IF(AR24="", 0, AR24 - IF(AR23="", LOOKUP(2, 1/(IF(ISNUMBER(AR$10:AR23), AR$10:AR23, "" )<>""), AR$10:AR23), AR23)),0) -> -17 | AT24: 0 | AU24: 17 | AV24: 2.314131053 | AW24: 4.155310049 | AX24: 35.77018503 | AY24: 2752 | AZ24: =IFERROR(IF(AY24="", 0, AY24 - IF(AY23="", LOOKUP(2, 1/(IF(ISNUMBER(AY$10:AY23), AY$10:AY23, "" )<>""), AY$10:AY23), AY23)),0) -> -5 | BA24: 0 | BB24: 5 | BC24: 0.413757214 | BD24: 1.724221496 | BE24: 19.35272844 | BF24: 1044 | BG24: =IFERROR(IF(BF24="", 0, BF24 - IF(BF23="", LOOKUP(2, 1/(IF(ISNUMBER(BF$10:BF23), BF$10:BF23, "" )<>""), BF$10:BF23), BF23)),0) -> -4 | BH24: 0 | BI24: 4 | BJ24: 0.2984139562 | BK24: 0.7143758644 | BL24: 29.46454932 | BM24: 12470 | BN24: =IFERROR(IF(BM24="", 0, BM24 - IF(BM23="", LOOKUP(2, 1/(IF(ISNUMBER(BM$10:BM23), BM$10:BM23, "" )<>""), BM$10:BM23), BM23)),0) -> -20 | BO24: 0 | BP24: 20 | BQ24: 8.03374888 | BR24: 3.786898473 | BS24: 67.9636964
A25: --- | B25: --- | C25: =IFERROR(IF(B25="", 0, B25 - IF(B24="", LOOKUP(2, 1/(IF(ISNUMBER(B$10:B24), B$10:B24, "" )<>""), B$10:B24), B24)),0) -> 0 | D25: 0 | E25: 0 | F25: 0.7544087227 | G25: 1.058617136 | H25: 41.61047781 | I25: --- | J25: =IFERROR(IF(I25="", 0, I25 - IF(I24="", LOOKUP(2, 1/(IF(ISNUMBER(I$10:I24), I$10:I24, "" )<>""), I$10:I24), I24)),0) -> 0 | K25: 0 | L25: 0 | M25: 0.571915289 | N25: 0.9503028214 | O25: 37.57117887 | P25: --- | Q25: =IFERROR(IF(P25="", 0, P25 - IF(P24="", LOOKUP(2, 1/(IF(ISNUMBER(P$10:P24), P$10:P24, "" )<>""), P$10:P24), P24)),0) -> 0 | R25: 0 | S25: 0 | T25: 0.7223070155 | U25: 1.216800471 | V25: 37.24945732 | W25: --- | X25: =IFERROR(IF(W25="", 0, W25 - IF(W24="", LOOKUP(2, 1/(IF(ISNUMBER(W$10:W24), W$10:W24, "" )<>""), W$10:W24), W24)),0) -> 0 | Y25: 0 | Z25: 0 | AA25: 1.492391933 | AB25: 4.682140259 | AC25: 24.1701215 | AD25: --- | AE25: =IFERROR(IF(AD25="", 0, AD25 - IF(AD24="", LOOKUP(2, 1/(IF(ISNUMBER(AD$10:AD24), AD$10:AD24, "" )<>""), AD$10:AD24), AD24)),0) -> 0 | AF25: 0 | AG25: 0 | AH25: 0.7101414584 | AI25: 0.1778571735 | AJ25: 79.97100817 | AK25: --- | AL25: =IFERROR(IF(AK25="", 0, AK25 - IF(AK24="", LOOKUP(2, 1/(IF(ISNUMBER(AK$10:AK24), AK$10:AK24, "" )<>""), AK$10:AK24), AK24)),0) -> 0 | AM25: 0 | AN25: 0 | AO25: 0.5439487603 | AP25: 1.054360533 | AQ25: 34.03275965 | AR25: --- | AS25: =IFERROR(IF(AR25="", 0, AR25 - IF(AR24="", LOOKUP(2, 1/(IF(ISNUMBER(AR$10:AR24), AR$10:AR24, "" )<>""), AR$10:AR24), AR24)),0) -> 0 | AT25: 0 | AU25: 0 | AV25: 2.314131053 | AW25: 4.155310049 | AX25: 35.77018503 | AY25: --- | AZ25: =IFERROR(IF(AY25="", 0, AY25 - IF(AY24="", LOOKUP(2, 1/(IF(ISNUMBER(AY$10:AY24), AY$10:AY24, "" )<>""), AY$10:AY24), AY24)),0) -> 0 | BA25: 0 | BB25: 0 | BC25: 0.413757214 | BD25: 1.724221496 | BE25: 19.35272844 | BF25: --- | BG25: =IFERROR(IF(BF25="", 0, BF25 - IF(BF24="", LOOKUP(2, 1/(IF(ISNUMBER(BF$10:BF24), BF$10:BF24, "" )<>""), BF$10:BF24), BF24)),0) -> 0 | BH25: 0 | BI25: 0 | BJ25: 0.2984139562 | BK25: 0.7143758644 | BL25: 29.46454932 | BM25: --- | BN25: =IFERROR(IF(BM25="", 0, BM25 - IF(BM24="", LOOKUP(2, 1/(IF(ISNUMBER(BM$10:BM24), BM$10:BM24, "" )<>""), BM$10:BM24), BM24)),0) -> 0 | BO25: 0 | BP25: 0 | BQ25: 8.03374888 | BR25: 3.786898473 | BS25: 67.9636964
C26: =IFERROR(IF(B26="", 0, B26 - IF(B25="", LOOKUP(2, 1/(IF(ISNUMBER(B$10:B25), B$10:B25, "" )<>""), B$10:B25), B25)),0) -> 0 | D26: 0 | E26: 0 | F26: 0.7544087227 | G26: 1.058617136 | H26: 41.61047781 | J26: =IFERROR(IF(I26="", 0, I26 - IF(I25="", LOOKUP(2, 1/(IF(ISNUMBER(I$10:I25), I$10:I25, "" )<>""), I$10:I25), I25)),0) -> 0 | K26: 0 | L26: 0 | M26: 0.571915289 | N26: 0.9503028214 | O26: 37.57117887 | Q26: =IFERROR(IF(P26="", 0, P26 - IF(P25="", LOOKUP(2, 1/(IF(ISNUMBER(P$10:P25), P$10:P25, "" )<>""), P$10:P25), P25)),0) -> 0 | R26: 0 | S26: 0 | T26: 0.7223070155 | U26: 1.216800471 | V26: 37.24945732 | X26: =IFERROR(IF(W26="", 0, W26 - IF(W25="", LOOKUP(2, 1/(IF(ISNUMBER(W$10:W25), W$10:W25, "" )<>""), W$10:W25), W25)),0) -> 0 | Y26: 0 | Z26: 0 | AA26: 1.492391933 | AB26: 4.682140259 | AC26: 24.1701215 | AE26: =IFERROR(IF(AD26="", 0, AD26 - IF(AD25="", LOOKUP(2, 1/(IF(ISNUMBER(AD$10:AD25), AD$10:AD25, "" )<>""), AD$10:AD25), AD25)),0) -> 0 | AF26: 0 | AG26: 0 | AH26: 0.7101414584 | AI26: 0.1778571735 | AJ26: 79.97100817 | AL26: =IFERROR(IF(AK26="", 0, AK26 - IF(AK25="", LOOKUP(2, 1/(IF(ISNUMBER(AK$10:AK25), AK$10:AK25, "" )<>""), AK$10:AK25), AK25)),0) -> 0 | AM26: 0 | AN26: 0 | AO26: 0.5439487603 | AP26: 1.054360533 | AQ26: 34.03275965 | AS26: =IFERROR(IF(AR26="", 0, AR26 - IF(AR25="", LOOKUP(2, 1/(IF(ISNUMBER(AR$10:AR25), AR$10:AR25, "" )<>""), AR$10:AR25), AR25)),0) -> 0 | AT26: 0 | AU26: 0 | AV26: 2.314131053 | AW26: 4.155310049 | AX26: 35.77018503 | AZ26: =IFERROR(IF(AY26="", 0, AY26 - IF(AY25="", LOOKUP(2, 1/(IF(ISNUMBER(AY$10:AY25), AY$10:AY25, "" )<>""), AY$10:AY25), AY25)),0) -> 0 | BA26: 0 | BB26: 0 | BC26: 0.413757214 | BD26: 1.724221496 | BE26: 19.35272844 | BG26: =IFERROR(IF(BF26="", 0, BF26 - IF(BF25="", LOOKUP(2, 1/(IF(ISNUMBER(BF$10:BF25), BF$10:BF25, "" )<>""), BF$10:BF25), BF25)),0) -> 0 | BH26: 0 | BI26: 0 | BJ26: 0.2984139562 | BK26: 0.7143758644 | BL26: 29.46454932 | BN26: =IFERROR(IF(BM26="", 0, BM26 - IF(BM25="", LOOKUP(2, 1/(IF(ISNUMBER(BM$10:BM25), BM$10:BM25, "" )<>""), BM$10:BM25), BM25)),0) -> 0 | BO26: 0 | BP26: 0 | BQ26: 8.03374888 | BR26: 3.786898473 | BS26: 67.9636964
C27: =IFERROR(IF(B27="", 0, B27 - IF(B26="", LOOKUP(2, 1/(IF(ISNUMBER(B$10:B26), B$10:B26, "" )<>""), B$10:B26), B26)),0) -> 0 | D27: 0 | E27: 0 | F27: 0.7544087227 | G27: 1.058617136 | H27: 41.61047781 | J27: =IFERROR(IF(I27="", 0, I27 - IF(I26="", LOOKUP(2, 1/(IF(ISNUMBER(I$10:I26), I$10:I26, "" )<>""), I$10:I26), I26)),0) -> 0 | K27: 0 | L27: 0 | M27: 0.571915289 | N27: 0.9503028214 | O27: 37.57117887 | Q27: =IFERROR(IF(P27="", 0, P27 - IF(P26="", LOOKUP(2, 1/(IF(ISNUMBER(P$10:P26), P$10:P26, "" )<>""), P$10:P26), P26)),0) -> 0 | R27: 0 | S27: 0 | T27: 0.7223070155 | U27: 1.216800471 | V27: 37.24945732 | X27: =IFERROR(IF(W27="", 0, W27 - IF(W26="", LOOKUP(2, 1/(IF(ISNUMBER(W$10:W26), W$10:W26, "" )<>""), W$10:W26), W26)),0) -> 0 | Y27: 0 | Z27: 0 | AA27: 1.492391933 | AB27: 4.682140259 | AC27: 24.1701215 | AE27: =IFERROR(IF(AD27="", 0, AD27 - IF(AD26="", LOOKUP(2, 1/(IF(ISNUMBER(AD$10:AD26), AD$10:AD26, "" )<>""), AD$10:AD26), AD26)),0) -> 0 | AF27: 0 | AG27: 0 | AH27: 0.7101414584 | AI27: 0.1778571735 | AJ27: 79.97100817 | AL27: =IFERROR(IF(AK27="", 0, AK27 - IF(AK26="", LOOKUP(2, 1/(IF(ISNUMBER(AK$10:AK26), AK$10:AK26, "" )<>""), AK$10:AK26), AK26)),0) -> 0 | AM27: 0 | AN27: 0 | AO27: 0.5439487603 | AP27: 1.054360533 | AQ27: 34.03275965 | AS27: =IFERROR(IF(AR27="", 0, AR27 - IF(AR26="", LOOKUP(2, 1/(IF(ISNUMBER(AR$10:AR26), AR$10:AR26, "" )<>""), AR$10:AR26), AR26)),0) -> 0 | AT27: 0 | AU27: 0 | AV27: 2.314131053 | AW27: 4.155310049 | AX27: 35.77018503 | AZ27: =IFERROR(IF(AY27="", 0, AY27 - IF(AY26="", LOOKUP(2, 1/(IF(ISNUMBER(AY$10:AY26), AY$10:AY26, "" )<>""), AY$10:AY26), AY26)),0) -> 0 | BA27: 0 | BB27: 0 | BC27: 0.413757214 | BD27: 1.724221496 | BE27: 19.35272844 | BG27: =IFERROR(IF(BF27="", 0, BF27 - IF(BF26="", LOOKUP(2, 1/(IF(ISNUMBER(BF$10:BF26), BF$10:BF26, "" )<>""), BF$10:BF26), BF26)),0) -> 0 | BH27: 0 | BI27: 0 | BJ27: 0.2984139562 | BK27: 0.7143758644 | BL27: 29.46454932 | BN27: =IFERROR(IF(BM27="", 0, BM27 - IF(BM26="", LOOKUP(2, 1/(IF(ISNUMBER(BM$10:BM26), BM$10:BM26, "" )<>""), BM$10:BM26), BM26)),0) -> 0 | BO27: 0 | BP27: 0 | BQ27: 8.03374888 | BR27: 3.786898473 | BS27: 67.9636964
C28: =IFERROR(IF(B28="", 0, B28 - IF(B27="", LOOKUP(2, 1/(IF(ISNUMBER(B$10:B27), B$10:B27, "" )<>""), B$10:B27), B27)),0) -> 0 | D28: 0 | E28: 0 | F28: 0.7544087227 | G28: 1.058617136 | H28: 41.61047781 | J28: =IFERROR(IF(I28="", 0, I28 - IF(I27="", LOOKUP(2, 1/(IF(ISNUMBER(I$10:I27), I$10:I27, "" )<>""), I$10:I27), I27)),0) -> 0 | K28: 0 | L28: 0 | M28: 0.571915289 | N28: 0.9503028214 | O28: 37.57117887 | Q28: =IFERROR(IF(P28="", 0, P28 - IF(P27="", LOOKUP(2, 1/(IF(ISNUMBER(P$10:P27), P$10:P27, "" )<>""), P$10:P27), P27)),0) -> 0 | R28: 0 | S28: 0 | T28: 0.7223070155 | U28: 1.216800471 | V28: 37.24945732 | X28: =IFERROR(IF(W28="", 0, W28 - IF(W27="", LOOKUP(2, 1/(IF(ISNUMBER(W$10:W27), W$10:W27, "" )<>""), W$10:W27), W27)),0) -> 0 | Y28: 0 | Z28: 0 | AA28: 1.492391933 | AB28: 4.682140259 | AC28: 24.1701215 | AE28: =IFERROR(IF(AD28="", 0, AD28 - IF(AD27="", LOOKUP(2, 1/(IF(ISNUMBER(AD$10:AD27), AD$10:AD27, "" )<>""), AD$10:AD27), AD27)),0) -> 0 | AF28: 0 | AG28: 0 | AH28: 0.7101414584 | AI28: 0.1778571735 | AJ28: 79.97100817 | AL28: =IFERROR(IF(AK28="", 0, AK28 - IF(AK27="", LOOKUP(2, 1/(IF(ISNUMBER(AK$10:AK27), AK$10:AK27, "" )<>""), AK$10:AK27), AK27)),0) -> 0 | AM28: 0 | AN28: 0 | AO28: 0.5439487603 | AP28: 1.054360533 | AQ28: 34.03275965 | AS28: =IFERROR(IF(AR28="", 0, AR28 - IF(AR27="", LOOKUP(2, 1/(IF(ISNUMBER(AR$10:AR27), AR$10:AR27, "" )<>""), AR$10:AR27), AR27)),0) -> 0 | AT28: 0 | AU28: 0 | AV28: 2.314131053 | AW28: 4.155310049 | AX28: 35.77018503 | AZ28: =IFERROR(IF(AY28="", 0, AY28 - IF(AY27="", LOOKUP(2, 1/(IF(ISNUMBER(AY$10:AY27), AY$10:AY27, "" )<>""), AY$10:AY27), AY27)),0) -> 0 | BA28: 0 | BB28: 0 | BC28: 0.413757214 | BD28: 1.724221496 | BE28: 19.35272844 | BG28: =IFERROR(IF(BF28="", 0, BF28 - IF(BF27="", LOOKUP(2, 1/(IF(ISNUMBER(BF$10:BF27), BF$10:BF27, "" )<>""), BF$10:BF27), BF27)),0) -> 0 | BH28: 0 | BI28: 0 | BJ28: 0.2984139562 | BK28: 0.7143758644 | BL28: 29.46454932 | BN28: =IFERROR(IF(BM28="", 0, BM28 - IF(BM27="", LOOKUP(2, 1/(IF(ISNUMBER(BM$10:BM27), BM$10:BM27, "" )<>""), BM$10:BM27), BM27)),0) -> 0 | BO28: 0 | BP28: 0 | BQ28: 8.03374888 | BR28: 3.786898473 | BS28: 67.9636964
C29: =IFERROR(IF(B29="", 0, B29 - IF(B28="", LOOKUP(2, 1/(IF(ISNUMBER(B$10:B28), B$10:B28, "" )<>""), B$10:B28), B28)),0) -> 0 | D29: 0 | E29: 0 | F29: 0.7544087227 | G29: 1.058617136 | H29: =IFERROR(F29/(F29+G29)*100,H28) -> 41.61047781 | J29: =IFERROR(IF(I29="", 0, I29 - IF(I28="", LOOKUP(2, 1/(IF(ISNUMBER(I$10:I28), I$10:I28, "" )<>""), I$10:I28), I28)),0) -> 0 | K29: 0 | L29: 0 | M29: 0.571915289 | N29: 0.9503028214 | O29: 37.57117887 | Q29: =IFERROR(IF(P29="", 0, P29 - IF(P28="", LOOKUP(2, 1/(IF(ISNUMBER(P$10:P28), P$10:P28, "" )<>""), P$10:P28), P28)),0) -> 0 | R29: 0 | S29: 0 | T29: 0.7223070155 | U29: 1.216800471 | V29: 37.24945732 | X29: =IFERROR(IF(W29="", 0, W29 - IF(W28="", LOOKUP(2, 1/(IF(ISNUMBER(W$10:W28), W$10:W28, "" )<>""), W$10:W28), W28)),0) -> 0 | Y29: 0 | Z29: 0 | AA29: 1.492391933 | AB29: 4.682140259 | AC29: 24.1701215 | AE29: =IFERROR(IF(AD29="", 0, AD29 - IF(AD28="", LOOKUP(2, 1/(IF(ISNUMBER(AD$10:AD28), AD$10:AD28, "" )<>""), AD$10:AD28), AD28)),0) -> 0 | AF29: 0 | AG29: 0 | AH29: 0.7101414584 | AI29: 0.1778571735 | AJ29: 79.97100817 | AL29: =IFERROR(IF(AK29="", 0, AK29 - IF(AK28="", LOOKUP(2, 1/(IF(ISNUMBER(AK$10:AK28), AK$10:AK28, "" )<>""), AK$10:AK28), AK28)),0) -> 0 | AM29: 0 | AN29: 0 | AO29: 0.5439487603 | AP29: 1.054360533 | AQ29: 34.03275965 | AS29: =IFERROR(IF(AR29="", 0, AR29 - IF(AR28="", LOOKUP(2, 1/(IF(ISNUMBER(AR$10:AR28), AR$10:AR28, "" )<>""), AR$10:AR28), AR28)),0) -> 0 | AT29: 0 | AU29: 0 | AV29: 2.314131053 | AW29: 4.155310049 | AX29: 35.77018503 | AZ29: =IFERROR(IF(AY29="", 0, AY29 - IF(AY28="", LOOKUP(2, 1/(IF(ISNUMBER(AY$10:AY28), AY$10:AY28, "" )<>""), AY$10:AY28), AY28)),0) -> 0 | BA29: 0 | BB29: 0 | BC29: 0.413757214 | BD29: 1.724221496 | BE29: 19.35272844 | BG29: =IFERROR(IF(BF29="", 0, BF29 - IF(BF28="", LOOKUP(2, 1/(IF(ISNUMBER(BF$10:BF28), BF$10:BF28, "" )<>""), BF$10:BF28), BF28)),0) -> 0 | BH29: 0 | BI29: 0 | BJ29: 0.2984139562 | BK29: 0.7143758644 | BL29: 29.46454932 | BN29: =IFERROR(IF(BM29="", 0, BM29 - IF(BM28="", LOOKUP(2, 1/(IF(ISNUMBER(BM$10:BM28), BM$10:BM28, "" )<>""), BM$10:BM28), BM28)),0) -> 0 | BO29: 0 | BP29: 0 | BQ29: 8.03374888 | BR29: 3.786898473 | BS29: 67.9636964
C30: =IFERROR(IF(B30="", 0, B30 - IF(B29="", LOOKUP(2, 1/(IF(ISNUMBER(B$10:B29), B$10:B29, "" )<>""), B$10:B29), B29)),0) -> 0 | D30: 0 | E30: 0 | F30: 0.7544087227 | G30: 1.058617136 | H30: =IFERROR(F30/(F30+G30)*100,H29) -> 41.61047781 | J30: =IFERROR(IF(I30="", 0, I30 - IF(I29="", LOOKUP(2, 1/(IF(ISNUMBER(I$10:I29), I$10:I29, "" )<>""), I$10:I29), I29)),0) -> 0 | K30: 0 | L30: 0 | M30: 0.571915289 | N30: 0.9503028214 | O30: 37.57117887 | Q30: =IFERROR(IF(P30="", 0, P30 - IF(P29="", LOOKUP(2, 1/(IF(ISNUMBER(P$10:P29), P$10:P29, "" )<>""), P$10:P29), P29)),0) -> 0 | R30: 0 | S30: 0 | T30: 0.7223070155 | U30: 1.216800471 | V30: 37.24945732 | X30: =IFERROR(IF(W30="", 0, W30 - IF(W29="", LOOKUP(2, 1/(IF(ISNUMBER(W$10:W29), W$10:W29, "" )<>""), W$10:W29), W29)),0) -> 0 | Y30: 0 | Z30: 0 | AA30: 1.492391933 | AB30: 4.682140259 | AC30: 24.1701215 | AE30: =IFERROR(IF(AD30="", 0, AD30 - IF(AD29="", LOOKUP(2, 1/(IF(ISNUMBER(AD$10:AD29), AD$10:AD29, "" )<>""), AD$10:AD29), AD29)),0) -> 0 | AF30: 0 | AG30: 0 | AH30: 0.7101414584 | AI30: 0.1778571735 | AJ30: 79.97100817 | AL30: =IFERROR(IF(AK30="", 0, AK30 - IF(AK29="", LOOKUP(2, 1/(IF(ISNUMBER(AK$10:AK29), AK$10:AK29, "" )<>""), AK$10:AK29), AK29)),0) -> 0 | AM30: 0 | AN30: 0 | AO30: 0.5439487603 | AP30: 1.054360533 | AQ30: 34.03275965 | AS30: =IFERROR(IF(AR30="", 0, AR30 - IF(AR29="", LOOKUP(2, 1/(IF(ISNUMBER(AR$10:AR29), AR$10:AR29, "" )<>""), AR$10:AR29), AR29)),0) -> 0 | AT30: 0 | AU30: 0 | AV30: 2.314131053 | AW30: 4.155310049 | AX30: 35.77018503 | AZ30: =IFERROR(IF(AY30="", 0, AY30 - IF(AY29="", LOOKUP(2, 1/(IF(ISNUMBER(AY$10:AY29), AY$10:AY29, "" )<>""), AY$10:AY29), AY29)),0) -> 0 | BA30: 0 | BB30: 0 | BC30: 0.413757214 | BD30: 1.724221496 | BE30: 19.35272844 | BG30: =IFERROR(IF(BF30="", 0, BF30 - IF(BF29="", LOOKUP(2, 1/(IF(ISNUMBER(BF$10:BF29), BF$10:BF29, "" )<>""), BF$10:BF29), BF29)),0) -> 0 | BH30: 0 | BI30: 0 | BJ30: 0.2984139562 | BK30: 0.7143758644 | BL30: 29.46454932 | BN30: =IFERROR(IF(BM30="", 0, BM30 - IF(BM29="", LOOKUP(2, 1/(IF(ISNUMBER(BM$10:BM29), BM$10:BM29, "" )<>""), BM$10:BM29), BM29)),0) -> 0 | BO30: 0 | BP30: 0 | BQ30: 8.03374888 | BR30: 3.786898473 | BS30: 67.9636964
C31: =IFERROR(IF(B31="", 0, B31 - IF(B30="", LOOKUP(2, 1/(IF(ISNUMBER(B$10:B30), B$10:B30, "" )<>""), B$10:B30), B30)),0) -> 0 | D31: 0 | E31: 0 | F31: 0.7544087227 | G31: 1.058617136 | H31: 41.61047781 | J31: =IFERROR(IF(I31="", 0, I31 - IF(I30="", LOOKUP(2, 1/(IF(ISNUMBER(I$10:I30), I$10:I30, "" )<>""), I$10:I30), I30)),0) -> 0 | K31: 0 | L31: 0 | M31: 0.571915289 | N31: 0.9503028214 | O31: 37.57117887 | Q31: =IFERROR(IF(P31="", 0, P31 - IF(P30="", LOOKUP(2, 1/(IF(ISNUMBER(P$10:P30), P$10:P30, "" )<>""), P$10:P30), P30)),0) -> 0 | R31: 0 | S31: 0 | T31: 0.7223070155 | U31: 1.216800471 | V31: 37.24945732 | X31: =IFERROR(IF(W31="", 0, W31 - IF(W30="", LOOKUP(2, 1/(IF(ISNUMBER(W$10:W30), W$10:W30, "" )<>""), W$10:W30), W30)),0) -> 0 | Y31: 0 | Z31: 0 | AA31: 1.492391933 | AB31: 4.682140259 | AC31: 24.1701215 | AE31: =IFERROR(IF(AD31="", 0, AD31 - IF(AD30="", LOOKUP(2, 1/(IF(ISNUMBER(AD$10:AD30), AD$10:AD30, "" )<>""), AD$10:AD30), AD30)),0) -> 0 | AF31: 0 | AG31: 0 | AH31: 0.7101414584 | AI31: 0.1778571735 | AJ31: 79.97100817 | AL31: =IFERROR(IF(AK31="", 0, AK31 - IF(AK30="", LOOKUP(2, 1/(IF(ISNUMBER(AK$10:AK30), AK$10:AK30, "" )<>""), AK$10:AK30), AK30)),0) -> 0 | AM31: 0 | AN31: 0 | AO31: 0.5439487603 | AP31: 1.054360533 | AQ31: 34.03275965 | AS31: =IFERROR(IF(AR31="", 0, AR31 - IF(AR30="", LOOKUP(2, 1/(IF(ISNUMBER(AR$10:AR30), AR$10:AR30, "" )<>""), AR$10:AR30), AR30)),0) -> 0 | AT31: 0 | AU31: 0 | AV31: 2.314131053 | AW31: 4.155310049 | AX31: 35.77018503 | AZ31: =IFERROR(IF(AY31="", 0, AY31 - IF(AY30="", LOOKUP(2, 1/(IF(ISNUMBER(AY$10:AY30), AY$10:AY30, "" )<>""), AY$10:AY30), AY30)),0) -> 0 | BA31: 0 | BB31: 0 | BC31: 0.413757214 | BD31: 1.724221496 | BE31: 19.35272844 | BG31: =IFERROR(IF(BF31="", 0, BF31 - IF(BF30="", LOOKUP(2, 1/(IF(ISNUMBER(BF$10:BF30), BF$10:BF30, "" )<>""), BF$10:BF30), BF30)),0) -> 0 | BH31: 0 | BI31: 0 | BJ31: 0.2984139562 | BK31: 0.7143758644 | BL31: 29.46454932 | BN31: =IFERROR(IF(BM31="", 0, BM31 - IF(BM30="", LOOKUP(2, 1/(IF(ISNUMBER(BM$10:BM30), BM$10:BM30, "" )<>""), BM$10:BM30), BM30)),0) -> 0 | BO31: 0 | BP31: 0 | BQ31: 8.03374888 | BR31: 3.786898473 | BS31: 67.9636964
C32: =IFERROR(IF(B32="", 0, B32 - IF(B31="", LOOKUP(2, 1/(IF(ISNUMBER(B$10:B31), B$10:B31, "" )<>""), B$10:B31), B31)),0) -> 0 | D32: 0 | E32: 0 | F32: 0.7544087227 | G32: 1.058617136 | H32: 41.61047781 | J32: =IFERROR(IF(I32="", 0, I32 - IF(I31="", LOOKUP(2, 1/(IF(ISNUMBER(I$10:I31), I$10:I31, "" )<>""), I$10:I31), I31)),0) -> 0 | K32: 0 | L32: 0 | M32: 0.571915289 | N32: 0.9503028214 | O32: 37.57117887 | Q32: =IFERROR(IF(P32="", 0, P32 - IF(P31="", LOOKUP(2, 1/(IF(ISNUMBER(P$10:P31), P$10:P31, "" )<>""), P$10:P31), P31)),0) -> 0 | R32: 0 | S32: 0 | T32: 0.7223070155 | U32: 1.216800471 | V32: 37.24945732 | X32: =IFERROR(IF(W32="", 0, W32 - IF(W31="", LOOKUP(2, 1/(IF(ISNUMBER(W$10:W31), W$10:W31, "" )<>""), W$10:W31), W31)),0) -> 0 | Y32: 0 | Z32: 0 | AA32: 1.492391933 | AB32: 4.682140259 | AC32: 24.1701215 | AE32: =IFERROR(IF(AD32="", 0, AD32 - IF(AD31="", LOOKUP(2, 1/(IF(ISNUMBER(AD$10:AD31), AD$10:AD31, "" )<>""), AD$10:AD31), AD31)),0) -> 0 | AF32: 0 | AG32: 0 | AH32: 0.7101414584 | AI32: 0.1778571735 | AJ32: 79.97100817 | AL32: =IFERROR(IF(AK32="", 0, AK32 - IF(AK31="", LOOKUP(2, 1/(IF(ISNUMBER(AK$10:AK31), AK$10:AK31, "" )<>""), AK$10:AK31), AK31)),0) -> 0 | AM32: 0 | AN32: 0 | AO32: 0.5439487603 | AP32: 1.054360533 | AQ32: 34.03275965 | AS32: =IFERROR(IF(AR32="", 0, AR32 - IF(AR31="", LOOKUP(2, 1/(IF(ISNUMBER(AR$10:AR31), AR$10:AR31, "" )<>""), AR$10:AR31), AR31)),0) -> 0 | AT32: 0 | AU32: 0 | AV32: 2.314131053 | AW32: 4.155310049 | AX32: 35.77018503 | AZ32: =IFERROR(IF(AY32="", 0, AY32 - IF(AY31="", LOOKUP(2, 1/(IF(ISNUMBER(AY$10:AY31), AY$10:AY31, "" )<>""), AY$10:AY31), AY31)),0) -> 0 | BA32: 0 | BB32: 0 | BC32: 0.413757214 | BD32: 1.724221496 | BE32: 19.35272844 | BG32: =IFERROR(IF(BF32="", 0, BF32 - IF(BF31="", LOOKUP(2, 1/(IF(ISNUMBER(BF$10:BF31), BF$10:BF31, "" )<>""), BF$10:BF31), BF31)),0) -> 0 | BH32: 0 | BI32: 0 | BJ32: 0.2984139562 | BK32: 0.7143758644 | BL32: 29.46454932 | BN32: =IFERROR(IF(BM32="", 0, BM32 - IF(BM31="", LOOKUP(2, 1/(IF(ISNUMBER(BM$10:BM31), BM$10:BM31, "" )<>""), BM$10:BM31), BM31)),0) -> 0 | BO32: 0 | BP32: 0 | BQ32: 8.03374888 | BR32: 3.786898473 | BS32: 67.9636964
C33: =IFERROR(IF(B33="", 0, B33 - IF(B32="", LOOKUP(2, 1/(IF(ISNUMBER(B$10:B32), B$10:B32, "" )<>""), B$10:B32), B32)),0) -> 0 | D33: 0 | E33: 0 | F33: 0.7544087227 | G33: 1.058617136 | H33: 41.61047781 | J33: =IFERROR(IF(I33="", 0, I33 - IF(I32="", LOOKUP(2, 1/(IF(ISNUMBER(I$10:I32), I$10:I32, "" )<>""), I$10:I32), I32)),0) -> 0 | K33: 0 | L33: 0 | M33: 0.571915289 | N33: 0.9503028214 | O33: 37.57117887 | Q33: =IFERROR(IF(P33="", 0, P33 - IF(P32="", LOOKUP(2, 1/(IF(ISNUMBER(P$10:P32), P$10:P32, "" )<>""), P$10:P32), P32)),0) -> 0 | R33: 0 | S33: 0 | T33: 0.7223070155 | U33: 1.216800471 | V33: 37.24945732 | X33: =IFERROR(IF(W33="", 0, W33 - IF(W32="", LOOKUP(2, 1/(IF(ISNUMBER(W$10:W32), W$10:W32, "" )<>""), W$10:W32), W32)),0) -> 0 | Y33: 0 | Z33: 0 | AA33: 1.492391933 | AB33: 4.682140259 | AC33: 24.1701215 | AE33: =IFERROR(IF(AD33="", 0, AD33 - IF(AD32="", LOOKUP(2, 1/(IF(ISNUMBER(AD$10:AD32), AD$10:AD32, "" )<>""), AD$10:AD32), AD32)),0) -> 0 | AF33: 0 | AG33: 0 | AH33: 0.7101414584 | AI33: 0.1778571735 | AJ33: 79.97100817 | AL33: =IFERROR(IF(AK33="", 0, AK33 - IF(AK32="", LOOKUP(2, 1/(IF(ISNUMBER(AK$10:AK32), AK$10:AK32, "" )<>""), AK$10:AK32), AK32)),0) -> 0 | AM33: 0 | AN33: 0 | AO33: 0.5439487603 | AP33: 1.054360533 | AQ33: 34.03275965 | AS33: =IFERROR(IF(AR33="", 0, AR33 - IF(AR32="", LOOKUP(2, 1/(IF(ISNUMBER(AR$10:AR32), AR$10:AR32, "" )<>""), AR$10:AR32), AR32)),0) -> 0 | AT33: 0 | AU33: 0 | AV33: 2.314131053 | AW33: 4.155310049 | AX33: 35.77018503 | AZ33: =IFERROR(IF(AY33="", 0, AY33 - IF(AY32="", LOOKUP(2, 1/(IF(ISNUMBER(AY$10:AY32), AY$10:AY32, "" )<>""), AY$10:AY32), AY32)),0) -> 0 | BA33: 0 | BB33: 0 | BC33: 0.413757214 | BD33: 1.724221496 | BE33: 19.35272844 | BG33: =IFERROR(IF(BF33="", 0, BF33 - IF(BF32="", LOOKUP(2, 1/(IF(ISNUMBER(BF$10:BF32), BF$10:BF32, "" )<>""), BF$10:BF32), BF32)),0) -> 0 | BH33: 0 | BI33: 0 | BJ33: 0.2984139562 | BK33: 0.7143758644 | BL33: 29.46454932 | BN33: =IFERROR(IF(BM33="", 0, BM33 - IF(BM32="", LOOKUP(2, 1/(IF(ISNUMBER(BM$10:BM32), BM$10:BM32, "" )<>""), BM$10:BM32), BM32)),0) -> 0 | BO33: 0 | BP33: 0 | BQ33: 8.03374888 | BR33: 3.786898473 | BS33: 67.9636964
C34: =IFERROR(IF(B34="", 0, B34 - IF(B33="", LOOKUP(2, 1/(IF(ISNUMBER(B$10:B33), B$10:B33, "" )<>""), B$10:B33), B33)),0) -> 0 | D34: 0 | E34: 0 | F34: 0.7544087227 | G34: 1.058617136 | H34: 41.61047781 | J34: =IFERROR(IF(I34="", 0, I34 - IF(I33="", LOOKUP(2, 1/(IF(ISNUMBER(I$10:I33), I$10:I33, "" )<>""), I$10:I33), I33)),0) -> 0 | K34: 0 | L34: 0 | M34: 0.571915289 | N34: 0.9503028214 | O34: 37.57117887 | Q34: =IFERROR(IF(P34="", 0, P34 - IF(P33="", LOOKUP(2, 1/(IF(ISNUMBER(P$10:P33), P$10:P33, "" )<>""), P$10:P33), P33)),0) -> 0 | R34: 0 | S34: 0 | T34: 0.7223070155 | U34: 1.216800471 | V34: 37.24945732 | X34: =IFERROR(IF(W34="", 0, W34 - IF(W33="", LOOKUP(2, 1/(IF(ISNUMBER(W$10:W33), W$10:W33, "" )<>""), W$10:W33), W33)),0) -> 0 | Y34: 0 | Z34: 0 | AA34: 1.492391933 | AB34: 4.682140259 | AC34: 24.1701215 | AE34: =IFERROR(IF(AD34="", 0, AD34 - IF(AD33="", LOOKUP(2, 1/(IF(ISNUMBER(AD$10:AD33), AD$10:AD33, "" )<>""), AD$10:AD33), AD33)),0) -> 0 | AF34: 0 | AG34: 0 | AH34: 0.7101414584 | AI34: 0.1778571735 | AJ34: 79.97100817 | AL34: =IFERROR(IF(AK34="", 0, AK34 - IF(AK33="", LOOKUP(2, 1/(IF(ISNUMBER(AK$10:AK33), AK$10:AK33, "" )<>""), AK$10:AK33), AK33)),0) -> 0 | AM34: 0 | AN34: 0 | AO34: 0.5439487603 | AP34: 1.054360533 | AQ34: 34.03275965 | AS34: =IFERROR(IF(AR34="", 0, AR34 - IF(AR33="", LOOKUP(2, 1/(IF(ISNUMBER(AR$10:AR33), AR$10:AR33, "" )<>""), AR$10:AR33), AR33)),0) -> 0 | AT34: 0 | AU34: 0 | AV34: 2.314131053 | AW34: 4.155310049 | AX34: 35.77018503 | AZ34: =IFERROR(IF(AY34="", 0, AY34 - IF(AY33="", LOOKUP(2, 1/(IF(ISNUMBER(AY$10:AY33), AY$10:AY33, "" )<>""), AY$10:AY33), AY33)),0) -> 0 | BA34: 0 | BB34: 0 | BC34: 0.413757214 | BD34: 1.724221496 | BE34: 19.35272844 | BG34: =IFERROR(IF(BF34="", 0, BF34 - IF(BF33="", LOOKUP(2, 1/(IF(ISNUMBER(BF$10:BF33), BF$10:BF33, "" )<>""), BF$10:BF33), BF33)),0) -> 0 | BH34: 0 | BI34: 0 | BJ34: 0.2984139562 | BK34: 0.7143758644 | BL34: 29.46454932 | BN34: =IFERROR(IF(BM34="", 0, BM34 - IF(BM33="", LOOKUP(2, 1/(IF(ISNUMBER(BM$10:BM33), BM$10:BM33, "" )<>""), BM$10:BM33), BM33)),0) -> 0 | BO34: 0 | BP34: 0 | BQ34: 8.03374888 | BR34: 3.786898473 | BS34: 67.9636964
C35: =IFERROR(IF(B35="", 0, B35 - IF(B34="", LOOKUP(2, 1/(IF(ISNUMBER(B$10:B34), B$10:B34, "" )<>""), B$10:B34), B34)),0) -> 0 | D35: 0 | E35: 0 | F35: 0.7544087227 | G35: 1.058617136 | H35: 41.61047781 | J35: =IFERROR(IF(I35="", 0, I35 - IF(I34="", LOOKUP(2, 1/(IF(ISNUMBER(I$10:I34), I$10:I34, "" )<>""), I$10:I34), I34)),0) -> 0 | K35: 0 | L35: 0 | M35: 0.571915289 | N35: 0.9503028214 | O35: 37.57117887 | Q35: =IFERROR(IF(P35="", 0, P35 - IF(P34="", LOOKUP(2, 1/(IF(ISNUMBER(P$10:P34), P$10:P34, "" )<>""), P$10:P34), P34)),0) -> 0 | R35: 0 | S35: 0 | T35: 0.7223070155 | U35: 1.216800471 | V35: =IFERROR(T35/(T35+U35)*100,V34) -> 37.24945732 | X35: =IFERROR(IF(W35="", 0, W35 - IF(W34="", LOOKUP(2, 1/(IF(ISNUMBER(W$10:W34), W$10:W34, "" )<>""), W$10:W34), W34)),0) -> 0 | Y35: 0 | Z35: 0 | AA35: 1.492391933 | AB35: 4.682140259 | AC35: 24.1701215 | AE35: =IFERROR(IF(AD35="", 0, AD35 - IF(AD34="", LOOKUP(2, 1/(IF(ISNUMBER(AD$10:AD34), AD$10:AD34, "" )<>""), AD$10:AD34), AD34)),0) -> 0 | AF35: 0 | AG35: 0 | AH35: 0.7101414584 | AI35: 0.1778571735 | AJ35: 79.97100817 | AL35: =IFERROR(IF(AK35="", 0, AK35 - IF(AK34="", LOOKUP(2, 1/(IF(ISNUMBER(AK$10:AK34), AK$10:AK34, "" )<>""), AK$10:AK34), AK34)),0) -> 0 | AM35: 0 | AN35: 0 | AO35: 0.5439487603 | AP35: 1.054360533 | AQ35: 34.03275965 | AS35: =IFERROR(IF(AR35="", 0, AR35 - IF(AR34="", LOOKUP(2, 1/(IF(ISNUMBER(AR$10:AR34), AR$10:AR34, "" )<>""), AR$10:AR34), AR34)),0) -> 0 | AT35: 0 | AU35: 0 | AV35: 2.314131053 | AW35: 4.155310049 | AX35: 35.77018503 | AZ35: =IFERROR(IF(AY35="", 0, AY35 - IF(AY34="", LOOKUP(2, 1/(IF(ISNUMBER(AY$10:AY34), AY$10:AY34, "" )<>""), AY$10:AY34), AY34)),0) -> 0 | BA35: 0 | BB35: 0 | BC35: 0.413757214 | BD35: 1.724221496 | BE35: 19.35272844 | BG35: =IFERROR(IF(BF35="", 0, BF35 - IF(BF34="", LOOKUP(2, 1/(IF(ISNUMBER(BF$10:BF34), BF$10:BF34, "" )<>""), BF$10:BF34), BF34)),0) -> 0 | BH35: 0 | BI35: 0 | BJ35: 0.2984139562 | BK35: 0.7143758644 | BL35: 29.46454932 | BN35: =IFERROR(IF(BM35="", 0, BM35 - IF(BM34="", LOOKUP(2, 1/(IF(ISNUMBER(BM$10:BM34), BM$10:BM34, "" )<>""), BM$10:BM34), BM34)),0) -> 0 | BO35: 0 | BP35: 0 | BQ35: 8.03374888 | BR35: 3.786898473 | BS35: 67.9636964
C36: =IFERROR(IF(B36="", 0, B36 - IF(B35="", LOOKUP(2, 1/(IF(ISNUMBER(B$10:B35), B$10:B35, "" )<>""), B$10:B35), B35)),0) -> 0 | D36: 0 | E36: 0 | F36: 0.7544087227 | G36: 1.058617136 | H36: 41.61047781 | J36: =IFERROR(IF(I36="", 0, I36 - IF(I35="", LOOKUP(2, 1/(IF(ISNUMBER(I$10:I35), I$10:I35, "" )<>""), I$10:I35), I35)),0) -> 0 | K36: 0 | L36: 0 | M36: 0.571915289 | N36: 0.9503028214 | O36: 37.57117887 | Q36: =IFERROR(IF(P36="", 0, P36 - IF(P35="", LOOKUP(2, 1/(IF(ISNUMBER(P$10:P35), P$10:P35, "" )<>""), P$10:P35), P35)),0) -> 0 | R36: 0 | S36: 0 | T36: 0.7223070155 | U36: 1.216800471 | V36: 37.24945732 | X36: =IFERROR(IF(W36="", 0, W36 - IF(W35="", LOOKUP(2, 1/(IF(ISNUMBER(W$10:W35), W$10:W35, "" )<>""), W$10:W35), W35)),0) -> 0 | Y36: 0 | Z36: 0 | AA36: 1.492391933 | AB36: 4.682140259 | AC36: 24.1701215 | AE36: =IFERROR(IF(AD36="", 0, AD36 - IF(AD35="", LOOKUP(2, 1/(IF(ISNUMBER(AD$10:AD35), AD$10:AD35, "" )<>""), AD$10:AD35), AD35)),0) -> 0 | AF36: 0 | AG36: 0 | AH36: 0.7101414584 | AI36: 0.1778571735 | AJ36: 79.97100817 | AL36: =IFERROR(IF(AK36="", 0, AK36 - IF(AK35="", LOOKUP(2, 1/(IF(ISNUMBER(AK$10:AK35), AK$10:AK35, "" )<>""), AK$10:AK35), AK35)),0) -> 0 | AM36: 0 | AN36: 0 | AO36: 0.5439487603 | AP36: 1.054360533 | AQ36: 34.03275965 | AS36: =IFERROR(IF(AR36="", 0, AR36 - IF(AR35="", LOOKUP(2, 1/(IF(ISNUMBER(AR$10:AR35), AR$10:AR35, "" )<>""), AR$10:AR35), AR35)),0) -> 0 | AT36: 0 | AU36: 0 | AV36: 2.314131053 | AW36: 4.155310049 | AX36: 35.77018503 | AZ36: =IFERROR(IF(AY36="", 0, AY36 - IF(AY35="", LOOKUP(2, 1/(IF(ISNUMBER(AY$10:AY35), AY$10:AY35, "" )<>""), AY$10:AY35), AY35)),0) -> 0 | BA36: 0 | BB36: 0 | BC36: 0.413757214 | BD36: 1.724221496 | BE36: 19.35272844 | BG36: =IFERROR(IF(BF36="", 0, BF36 - IF(BF35="", LOOKUP(2, 1/(IF(ISNUMBER(BF$10:BF35), BF$10:BF35, "" )<>""), BF$10:BF35), BF35)),0) -> 0 | BH36: 0 | BI36: 0 | BJ36: 0.2984139562 | BK36: 0.7143758644 | BL36: 29.46454932 | BN36: =IFERROR(IF(BM36="", 0, BM36 - IF(BM35="", LOOKUP(2, 1/(IF(ISNUMBER(BM$10:BM35), BM$10:BM35, "" )<>""), BM$10:BM35), BM35)),0) -> 0 | BO36: 0 | BP36: 0 | BQ36: 8.03374888 | BR36: 3.786898473 | BS36: 67.9636964
C37: =IFERROR(IF(B37="", 0, B37 - IF(B36="", LOOKUP(2, 1/(IF(ISNUMBER(B$10:B36), B$10:B36, "" )<>""), B$10:B36), B36)),0) -> 0 | D37: 0 | E37: 0 | F37: 0.7544087227 | G37: 1.058617136 | H37: 41.61047781 | J37: =IFERROR(IF(I37="", 0, I37 - IF(I36="", LOOKUP(2, 1/(IF(ISNUMBER(I$10:I36), I$10:I36, "" )<>""), I$10:I36), I36)),0) -> 0 | K37: 0 | L37: 0 | M37: 0.571915289 | N37: 0.9503028214 | O37: 37.57117887 | Q37: =IFERROR(IF(P37="", 0, P37 - IF(P36="", LOOKUP(2, 1/(IF(ISNUMBER(P$10:P36), P$10:P36, "" )<>""), P$10:P36), P36)),0) -> 0 | R37: 0 | S37: 0 | T37: 0.7223070155 | U37: 1.216800471 | V37: 37.24945732 | X37: =IFERROR(IF(W37="", 0, W37 - IF(W36="", LOOKUP(2, 1/(IF(ISNUMBER(W$10:W36), W$10:W36, "" )<>""), W$10:W36), W36)),0) -> 0 | Y37: 0 | Z37: 0 | AA37: 1.492391933 | AB37: 4.682140259 | AC37: 24.1701215 | AE37: =IFERROR(IF(AD37="", 0, AD37 - IF(AD36="", LOOKUP(2, 1/(IF(ISNUMBER(AD$10:AD36), AD$10:AD36, "" )<>""), AD$10:AD36), AD36)),0) -> 0 | AF37: 0 | AG37: 0 | AH37: 0.7101414584 | AI37: 0.1778571735 | AJ37: 79.97100817 | AL37: =IFERROR(IF(AK37="", 0, AK37 - IF(AK36="", LOOKUP(2, 1/(IF(ISNUMBER(AK$10:AK36), AK$10:AK36, "" )<>""), AK$10:AK36), AK36)),0) -> 0 | AM37: 0 | AN37: 0 | AO37: 0.5439487603 | AP37: 1.054360533 | AQ37: 34.03275965 | AS37: =IFERROR(IF(AR37="", 0, AR37 - IF(AR36="", LOOKUP(2, 1/(IF(ISNUMBER(AR$10:AR36), AR$10:AR36, "" )<>""), AR$10:AR36), AR36)),0) -> 0 | AT37: 0 | AU37: 0 | AV37: 2.314131053 | AW37: 4.155310049 | AX37: 35.77018503 | AZ37: =IFERROR(IF(AY37="", 0, AY37 - IF(AY36="", LOOKUP(2, 1/(IF(ISNUMBER(AY$10:AY36), AY$10:AY36, "" )<>""), AY$10:AY36), AY36)),0) -> 0 | BA37: 0 | BB37: 0 | BC37: 0.413757214 | BD37: 1.724221496 | BE37: 19.35272844 | BG37: =IFERROR(IF(BF37="", 0, BF37 - IF(BF36="", LOOKUP(2, 1/(IF(ISNUMBER(BF$10:BF36), BF$10:BF36, "" )<>""), BF$10:BF36), BF36)),0) -> 0 | BH37: 0 | BI37: 0 | BJ37: 0.2984139562 | BK37: 0.7143758644 | BL37: 29.46454932 | BN37: =IFERROR(IF(BM37="", 0, BM37 - IF(BM36="", LOOKUP(2, 1/(IF(ISNUMBER(BM$10:BM36), BM$10:BM36, "" )<>""), BM$10:BM36), BM36)),0) -> 0 | BO37: 0 | BP37: 0 | BQ37: 8.03374888 | BR37: 3.786898473 | BS37: 67.9636964
C38: =IFERROR(IF(B38="", 0, B38 - IF(B37="", LOOKUP(2, 1/(IF(ISNUMBER(B$10:B37), B$10:B37, "" )<>""), B$10:B37), B37)),0) -> 0 | D38: 0 | E38: 0 | F38: 0.7544087227 | G38: 1.058617136 | H38: 41.61047781 | J38: =IFERROR(IF(I38="", 0, I38 - IF(I37="", LOOKUP(2, 1/(IF(ISNUMBER(I$10:I37), I$10:I37, "" )<>""), I$10:I37), I37)),0) -> 0 | K38: 0 | L38: 0 | M38: 0.571915289 | N38: 0.9503028214 | O38: 37.57117887 | Q38: =IFERROR(IF(P38="", 0, P38 - IF(P37="", LOOKUP(2, 1/(IF(ISNUMBER(P$10:P37), P$10:P37, "" )<>""), P$10:P37), P37)),0) -> 0 | R38: 0 | S38: 0 | T38: 0.7223070155 | U38: 1.216800471 | V38: 37.24945732 | X38: =IFERROR(IF(W38="", 0, W38 - IF(W37="", LOOKUP(2, 1/(IF(ISNUMBER(W$10:W37), W$10:W37, "" )<>""), W$10:W37), W37)),0) -> 0 | Y38: 0 | Z38: 0 | AA38: 1.492391933 | AB38: 4.682140259 | AC38: 24.1701215 | AE38: =IFERROR(IF(AD38="", 0, AD38 - IF(AD37="", LOOKUP(2, 1/(IF(ISNUMBER(AD$10:AD37), AD$10:AD37, "" )<>""), AD$10:AD37), AD37)),0) -> 0 | AF38: 0 | AG38: 0 | AH38: 0.7101414584 | AI38: 0.1778571735 | AJ38: 79.97100817 | AL38: =IFERROR(IF(AK38="", 0, AK38 - IF(AK37="", LOOKUP(2, 1/(IF(ISNUMBER(AK$10:AK37), AK$10:AK37, "" )<>""), AK$10:AK37), AK37)),0) -> 0 | AM38: 0 | AN38: 0 | AO38: 0.5439487603 | AP38: 1.054360533 | AQ38: 34.03275965 | AS38: =IFERROR(IF(AR38="", 0, AR38 - IF(AR37="", LOOKUP(2, 1/(IF(ISNUMBER(AR$10:AR37), AR$10:AR37, "" )<>""), AR$10:AR37), AR37)),0) -> 0 | AT38: 0 | AU38: 0 | AV38: 2.314131053 | AW38: 4.155310049 | AX38: 35.77018503 | AZ38: =IFERROR(IF(AY38="", 0, AY38 - IF(AY37="", LOOKUP(2, 1/(IF(ISNUMBER(AY$10:AY37), AY$10:AY37, "" )<>""), AY$10:AY37), AY37)),0) -> 0 | BA38: 0 | BB38: 0 | BC38: 0.413757214 | BD38: 1.724221496 | BE38: 19.35272844 | BG38: =IFERROR(IF(BF38="", 0, BF38 - IF(BF37="", LOOKUP(2, 1/(IF(ISNUMBER(BF$10:BF37), BF$10:BF37, "" )<>""), BF$10:BF37), BF37)),0) -> 0 | BH38: 0 | BI38: 0 | BJ38: 0.2984139562 | BK38: 0.7143758644 | BL38: 29.46454932 | BN38: =IFERROR(IF(BM38="", 0, BM38 - IF(BM37="", LOOKUP(2, 1/(IF(ISNUMBER(BM$10:BM37), BM$10:BM37, "" )<>""), BM$10:BM37), BM37)),0) -> 0 | BO38: 0 | BP38: 0 | BQ38: 8.03374888 | BR38: 3.786898473 | BS38: 67.9636964
C39: =IFERROR(IF(B39="", 0, B39 - IF(B38="", LOOKUP(2, 1/(IF(ISNUMBER(B$10:B38), B$10:B38, "" )<>""), B$10:B38), B38)),0) -> 0 | D39: 0 | E39: 0 | F39: 0.7544087227 | G39: 1.058617136 | H39: 41.61047781 | J39: =IFERROR(IF(I39="", 0, I39 - IF(I38="", LOOKUP(2, 1/(IF(ISNUMBER(I$10:I38), I$10:I38, "" )<>""), I$10:I38), I38)),0) -> 0 | K39: 0 | L39: 0 | M39: 0.571915289 | N39: 0.9503028214 | O39: 37.57117887 | Q39: =IFERROR(IF(P39="", 0, P39 - IF(P38="", LOOKUP(2, 1/(IF(ISNUMBER(P$10:P38), P$10:P38, "" )<>""), P$10:P38), P38)),0) -> 0 | R39: 0 | S39: 0 | T39: 0.7223070155 | U39: 1.216800471 | V39: 37.24945732 | X39: =IFERROR(IF(W39="", 0, W39 - IF(W38="", LOOKUP(2, 1/(IF(ISNUMBER(W$10:W38), W$10:W38, "" )<>""), W$10:W38), W38)),0) -> 0 | Y39: 0 | Z39: 0 | AA39: 1.492391933 | AB39: 4.682140259 | AC39: 24.1701215 | AE39: =IFERROR(IF(AD39="", 0, AD39 - IF(AD38="", LOOKUP(2, 1/(IF(ISNUMBER(AD$10:AD38), AD$10:AD38, "" )<>""), AD$10:AD38), AD38)),0) -> 0 | AF39: 0 | AG39: 0 | AH39: 0.7101414584 | AI39: 0.1778571735 | AJ39: 79.97100817 | AL39: =IFERROR(IF(AK39="", 0, AK39 - IF(AK38="", LOOKUP(2, 1/(IF(ISNUMBER(AK$10:AK38), AK$10:AK38, "" )<>""), AK$10:AK38), AK38)),0) -> 0 | AM39: 0 | AN39: 0 | AO39: 0.5439487603 | AP39: 1.054360533 | AQ39: 34.03275965 | AS39: =IFERROR(IF(AR39="", 0, AR39 - IF(AR38="", LOOKUP(2, 1/(IF(ISNUMBER(AR$10:AR38), AR$10:AR38, "" )<>""), AR$10:AR38), AR38)),0) -> 0 | AT39: 0 | AU39: 0 | AV39: 2.314131053 | AW39: 4.155310049 | AX39: 35.77018503 | AZ39: =IFERROR(IF(AY39="", 0, AY39 - IF(AY38="", LOOKUP(2, 1/(IF(ISNUMBER(AY$10:AY38), AY$10:AY38, "" )<>""), AY$10:AY38), AY38)),0) -> 0 | BA39: 0 | BB39: 0 | BC39: 0.413757214 | BD39: 1.724221496 | BE39: 19.35272844 | BG39: =IFERROR(IF(BF39="", 0, BF39 - IF(BF38="", LOOKUP(2, 1/(IF(ISNUMBER(BF$10:BF38), BF$10:BF38, "" )<>""), BF$10:BF38), BF38)),0) -> 0 | BH39: 0 | BI39: 0 | BJ39: 0.2984139562 | BK39: 0.7143758644 | BL39: 29.46454932 | BN39: =IFERROR(IF(BM39="", 0, BM39 - IF(BM38="", LOOKUP(2, 1/(IF(ISNUMBER(BM$10:BM38), BM$10:BM38, "" )<>""), BM$10:BM38), BM38)),0) -> 0 | BO39: 0 | BP39: 0 | BQ39: 8.03374888 | BR39: 3.786898473 | BS39: 67.9636964
C40: =IFERROR(IF(B40="", 0, B40 - IF(B39="", LOOKUP(2, 1/(IF(ISNUMBER(B$10:B39), B$10:B39, "" )<>""), B$10:B39), B39)),0) -> 0 | D40: =IF(C40>0, C40, 0) -> 0 | E40: =IF(C40<0, -C40, 0) -> 0 | F40: =IF(ISNUMBER(B40), ((F39*($C$4-1))+D40)/$C$4, F39) -> 0.7544087227 | G40: =IF(ISNUMBER(B40), ((G39*($C$4-1))+E40)/$C$4, G39) -> 1.058617136 | H40: =IFERROR(F40/(F40+G40)*100,H39) -> 41.61047781 | J40: =IFERROR(IF(I40="", 0, I40 - IF(I39="", LOOKUP(2, 1/(IF(ISNUMBER(I$10:I39), I$10:I39, "" )<>""), I$10:I39), I39)),0) -> 0 | K40: =IF(J40>0, J40, 0) -> 0 | L40: =IF(J40<0, -J40, 0) -> 0 | M40: =IF(ISNUMBER(I40), ((M39*($C$4-1))+K40)/$C$4, M39) -> 0.571915289 | N40: =IF(ISNUMBER(I40), ((N39*($C$4-1))+L40)/$C$4, N39) -> 0.9503028214 | O40: =IFERROR(M40/(M40+N40)*100,O39) -> 37.57117887 | Q40: =IFERROR(IF(P40="", 0, P40 - IF(P39="", LOOKUP(2, 1/(IF(ISNUMBER(P$10:P39), P$10:P39, "" )<>""), P$10:P39), P39)),0) -> 0 | R40: =IF(Q40>0, Q40, 0) -> 0 | S40: =IF(Q40<0, -Q40, 0) -> 0 | T40: =IF(ISNUMBER(P40), ((T39*($C$4-1))+R40)/$C$4, T39) -> 0.7223070155 | U40: =IF(ISNUMBER(P40), ((U39*($C$4-1))+S40)/$C$4, U39) -> 1.216800471 | V40: =IFERROR(T40/(T40+U40)*100,V39) -> 37.24945732 | X40: =IFERROR(IF(W40="", 0, W40 - IF(W39="", LOOKUP(2, 1/(IF(ISNUMBER(W$10:W39), W$10:W39, "" )<>""), W$10:W39), W39)),0) -> 0 | Y40: =IF(X40>0, X40, 0) -> 0 | Z40: =IF(X40<0, -X40, 0) -> 0 | AA40: =IF(ISNUMBER(W40), ((AA39*($C$4-1))+Y40)/$C$4, AA39) -> 1.492391933 | AB40: =IF(ISNUMBER(W40), ((AB39*($C$4-1))+Z40)/$C$4, AB39) -> 4.682140259 | AC40: =IFERROR(AA40/(AA40+AB40)*100,AC39) -> 24.1701215 | AE40: =IFERROR(IF(AD40="", 0, AD40 - IF(AD39="", LOOKUP(2, 1/(IF(ISNUMBER(AD$10:AD39), AD$10:AD39, "" )<>""), AD$10:AD39), AD39)),0) -> 0 | AF40: =IF(AE40>0, AE40, 0) -> 0 | AG40: =IF(AE40<0, -AE40, 0) -> 0 | AH40: =IF(ISNUMBER(AD40), ((AH39*($C$4-1))+AF40)/$C$4, AH39) -> 0.7101414584 | AI40: =IF(ISNUMBER(AD40), ((AI39*($C$4-1))+AG40)/$C$4, AI39) -> 0.1778571735 | AJ40: =IFERROR(AH40/(AH40+AI40)*100,AJ39) -> 79.97100817 | AL40: =IFERROR(IF(AK40="", 0, AK40 - IF(AK39="", LOOKUP(2, 1/(IF(ISNUMBER(AK$10:AK39), AK$10:AK39, "" )<>""), AK$10:AK39), AK39)),0) -> 0 | AM40: =IF(AL40>0, AL40, 0) -> 0 | AN40: =IF(AL40<0, -AL40, 0) -> 0 | AO40: =IF(ISNUMBER(AK40), ((AO39*($C$4-1))+AM40)/$C$4, AO39) -> 0.5439487603 | AP40: =IF(ISNUMBER(AK40), ((AP39*($C$4-1))+AN40)/$C$4, AP39) -> 1.054360533 | AQ40: =IFERROR(AO40/(AO40+AP40)*100,AQ39) -> 34.03275965 | AS40: =IFERROR(IF(AR40="", 0, AR40 - IF(AR39="", LOOKUP(2, 1/(IF(ISNUMBER(AR$10:AR39), AR$10:AR39, "" )<>""), AR$10:AR39), AR39)),0) -> 0 | AT40: =IF(AS40>0, AS40, 0) -> 0 | AU40: =IF(AS40<0, -AS40, 0) -> 0 | AV40: =IF(ISNUMBER(AR40), ((AV39*($C$4-1))+AT40)/$C$4, AV39) -> 2.314131053 | AW40: =IF(ISNUMBER(AR40), ((AW39*($C$4-1))+AU40)/$C$4, AW39) -> 4.155310049 | AX40: =IFERROR(AV40/(AV40+AW40)*100,AX39) -> 35.77018503 | AZ40: =IFERROR(IF(AY40="", 0, AY40 - IF(AY39="", LOOKUP(2, 1/(IF(ISNUMBER(AY$10:AY39), AY$10:AY39, "" )<>""), AY$10:AY39), AY39)),0) -> 0 | BA40: =IF(AZ40>0, AZ40, 0) -> 0 | BB40: =IF(AZ40<0, -AZ40, 0) -> 0 | BC40: =IF(ISNUMBER(AY40), ((BC39*($C$4-1))+BA40)/$C$4, BC39) -> 0.413757214 | BD40: =IF(ISNUMBER(AY40), ((BD39*($C$4-1))+BB40)/$C$4, BD39) -> 1.724221496 | BE40: =IFERROR(BC40/(BC40+BD40)*100,BE39) -> 19.35272844 | BG40: =IFERROR(IF(BF40="", 0, BF40 - IF(BF39="", LOOKUP(2, 1/(IF(ISNUMBER(BF$10:BF39), BF$10:BF39, "" )<>""), BF$10:BF39), BF39)),0) -> 0 | BH40: =IF(BG40>0, BG40, 0) -> 0 | BI40: =IF(BG40<0, -BG40, 0) -> 0 | BJ40: =IF(ISNUMBER(BF40), ((BJ39*($C$4-1))+BH40)/$C$4, BJ39) -> 0.2984139562 | BK40: =IF(ISNUMBER(BF40), ((BK39*($C$4-1))+BI40)/$C$4, BK39) -> 0.7143758644 | BL40: =IFERROR(BJ40/(BJ40+BK40)*100,BL39) -> 29.46454932 | BN40: =IFERROR(IF(BM40="", 0, BM40 - IF(BM39="", LOOKUP(2, 1/(IF(ISNUMBER(BM$10:BM39), BM$10:BM39, "" )<>""), BM$10:BM39), BM39)),0) -> 0 | BO40: =IF(BN40>0, BN40, 0) -> 0 | BP40: =IF(BN40<0, -BN40, 0) -> 0 | BQ40: =IF(ISNUMBER(BM40), ((BQ39*($C$4-1))+BO40)/$C$4, BQ39) -> 8.03374888 | BR40: =IF(ISNUMBER(BM40), ((BR39*($C$4-1))+BP40)/$C$4, BR39) -> 3.786898473 | BS40: =IFERROR(BQ40/(BQ40+BR40)*100,BS39) -> 67.9636964
C43: 上昇幅の平均 | D43: =IFERROR(SUMIF(D$10:D$39, ">0") / $C$4, "") -> 0.6428571429 | J43: 上昇幅の平均 | K43: =IFERROR(SUMIF(K$10:K$39, ">0") / $C$4, "") -> 0.4285714286 | Q43: 上昇幅の平均 | R43: =IFERROR(SUMIF(R$10:R$39, ">0") / $C$4, "") -> 0.5714285714 | X43: 上昇幅の平均 | Y43: =IFERROR(SUMIF(Y$10:Y$39, ">0") / $C$4, "") -> 2.142857143 | AE43: 上昇幅の平均 | AF43: =IFERROR(SUMIF(AF$10:AF$39, ">0") / $C$4, "") -> 0.5714285714 | AL43: 上昇幅の平均 | AM43: =IFERROR(SUMIF(AM$10:AM$39, ">0") / $C$4, "") -> 0.4642857143 | AS43: 上昇幅の平均 | AT43: =IFERROR(SUMIF(AT$10:AT$39, ">0") / $C$4, "") -> 1.642857143 | AZ43: 上昇幅の平均 | BA43: =IFERROR(SUMIF(BA$10:BA$39, ">0") / $C$4, "") -> 0.2857142857 | BG43: 上昇幅の平均 | BH43: =IFERROR(SUMIF(BH$10:BH$39, ">0") / $C$4, "") -> 0.2142857143 | BN43: 上昇幅の平均 | BO43: =IFERROR(SUMIF(BO$10:BO$39, ">0") / $C$4, "") -> 6.071428571
C44: 下降幅の平均 | E44: =IFERROR(SUM(E$10:E$39)/ $C$4, "") -> 0.7142857143 | J44: 下降幅の平均 | L44: =IFERROR(SUM(L$10:L$39)/ $C$4, "") -> 0.7142857143 | Q44: 下降幅の平均 | S44: =IFERROR(SUM(S$10:S$39)/ $C$4, "") -> 0.9285714286 | X44: 下降幅の平均 | Z44: =IFERROR(SUM(Z$10:Z$39)/ $C$4, "") -> 3.571428571 | AE44: 下降幅の平均 | AG44: =IFERROR(SUM(AG$10:AG$39)/ $C$4, "") -> 0.1428571429 | AL44: 下降幅の平均 | AN44: =IFERROR(SUM(AN$10:AN$39)/ $C$4, "") -> 0.7142857143 | AS44: 下降幅の平均 | AU44: =IFERROR(SUM(AU$10:AU$39)/ $C$4, "") -> 3.071428571 | AZ44: 下降幅の平均 | BB44: =IFERROR(SUM(BB$10:BB$39)/ $C$4, "") -> 1.357142857 | BG44: 下降幅の平均 | BI44: =IFERROR(SUM(BI$10:BI$39)/ $C$4, "") -> 0.5 | BN44: 下降幅の平均 | BP44: =IFERROR(SUM(BP$10:BP$39)/ $C$4, "") -> 2.857142857
A46: RSI | D46: 単純平均 | E46: =D43/(D43+E44)*100 -> 47.36842105 | G46: 平滑平均 | H46: =H39 -> 41.61047781 | K46: 単純平均 | L46: =K43/(K43+L44)*100 -> 37.5 | N46: 平滑平均 | O46: =O39 -> 37.57117887 | R46: 単純平均 | S46: =R43/(R43+S44)*100 -> 38.0952381 | U46: 平滑平均 | V46: =V39 -> 37.24945732 | Y46: 単純平均 | Z46: =Y43/(Y43+Z44)*100 -> 37.5 | AB46: 平滑平均 | AC46: =AC39 -> 24.1701215 | AF46: 単純平均 | AG46: =AF43/(AF43+AG44)*100 -> 80 | AI46: 平滑平均 | AJ46: =AJ39 -> 79.97100817 | AM46: 単純平均 | AN46: =AM43/(AM43+AN44)*100 -> 39.39393939 | AP46: 平滑平均 | AQ46: =AQ39 -> 34.03275965 | AT46: 単純平均 | AU46: =AT43/(AT43+AU44)*100 -> 34.84848485 | AW46: 平滑平均 | AX46: =AX39 -> 35.77018503 | BA46: 単純平均 | BB46: =BA43/(BA43+BB44)*100 -> 17.39130435 | BD46: 平滑平均 | BE46: =BE39 -> 19.35272844 | BH46: 単純平均 | BI46: =BH43/(BH43+BI44)*100 -> 30 | BK46: 平滑平均 | BL46: =BL39 -> 29.46454932 | BO46: 単純平均 | BP46: =BO43/(BO43+BP44)*100 -> 68 | BR46: 平滑平均 | BS46: =BS39 -> 67.9636964
